Workbook

Sheet ResourceLevelConfig
A1: ID | B1: Level | C1: value1 | D1: value2 | E1: value3 | F1: value4 | G1: value5 | H1: value6
A2: int | B2: int | C2: float | D2: float | E2: float | F2: float | G2: float | H2: float
B4: 等级 | C4: 1001 铜钱 | D4: 1002 银锭 | E4: 1003 修为 | F4: 1004 金锭 | G4: 1005 功法灵气 | H4: 1006 法宝灵韵 | J4: 1.01006953 | K4: =I304 -> 19999.99153
A5: 1 | B5: 1 | C5: 10000 | D5: 100 | E5: 1000 | F5: 100 | G5: 100 | H5: 100 | I5: 1000
A6: 2 | B6: 2 | C6: =ROUND($I6*C$5/$I$5,0) -> 10101 | D6: =ROUND($I6*D$5/$I$5,0) -> 101 | E6: =ROUND($I6*E$5/$I$5,0) -> 1010 | F6: =ROUND($I6*F$5/$I$5,0) -> 101 | G6: =ROUND($I6*G$5/$I$5,0) -> 101 | H6: =ROUND($I6*H$5/$I$5,0) -> 101 | I6: =MAX(I5+I$5*0.01,I5*$J$4) -> 1010.06953
A7: 3 | B7: 3 | C7: =ROUND($I7*C$5/$I$5,0) -> 10202 | D7: =ROUND($I7*D$5/$I$5,0) -> 102 | E7: =ROUND($I7*E$5/$I$5,0) -> 1020 | F7: =ROUND($I7*F$5/$I$5,0) -> 102 | G7: =ROUND($I7*G$5/$I$5,0) -> 102 | H7: =ROUND($I7*H$5/$I$5,0) -> 102 | I7: =MAX(I6+I$5*0.01,I6*$J$4) -> 1020.240455
A8: 4 | B8: 4 | C8: =ROUND($I8*C$5/$I$5,0) -> 10305 | D8: =ROUND($I8*D$5/$I$5,0) -> 103 | E8: =ROUND($I8*E$5/$I$5,0) -> 1031 | F8: =ROUND($I8*F$5/$I$5,0) -> 103 | G8: =ROUND($I8*G$5/$I$5,0) -> 103 | H8: =ROUND($I8*H$5/$I$5,0) -> 103 | I8: =MAX(I7+I$5*0.01,I7*$J$4) -> 1030.513797
A9: 5 | B9: 5 | C9: =ROUND($I9*C$5/$I$5,0) -> 10409 | D9: =ROUND($I9*D$5/$I$5,0) -> 104 | E9: =ROUND($I9*E$5/$I$5,0) -> 1041 | F9: =ROUND($I9*F$5/$I$5,0) -> 104 | G9: =ROUND($I9*G$5/$I$5,0) -> 104 | H9: =ROUND($I9*H$5/$I$5,0) -> 104 | I9: =MAX(I8+I$5*0.01,I8*$J$4) -> 1040.890587
A10: 6 | B10: 6 | C10: =ROUND($I10*C$5/$I$5,0) -> 10514 | D10: =ROUND($I10*D$5/$I$5,0) -> 105 | E10: =ROUND($I10*E$5/$I$5,0) -> 1051 | F10: =ROUND($I10*F$5/$I$5,0) -> 105 | G10: =ROUND($I10*G$5/$I$5,0) -> 105 | H10: =ROUND($I10*H$5/$I$5,0) -> 105 | I10: =MAX(I9+I$5*0.01,I9*$J$4) -> 1051.371866
A11: 7 | B11: 7 | C11: =ROUND($I11*C$5/$I$5,0) -> 10620 | D11: =ROUND($I11*D$5/$I$5,0) -> 106 | E11: =ROUND($I11*E$5/$I$5,0) -> 1062 | F11: =ROUND($I11*F$5/$I$5,0) -> 106 | G11: =ROUND($I11*G$5/$I$5,0) -> 106 | H11: =ROUND($I11*H$5/$I$5,0) -> 106 | I11: =MAX(I10+I$5*0.01,I10*$J$4) -> 1061.958686
A12: 8 | B12: 8 | C12: =ROUND($I12*C$5/$I$5,0) -> 10727 | D12: =ROUND($I12*D$5/$I$5,0) -> 107 | E12: =ROUND($I12*E$5/$I$5,0) -> 1073 | F12: =ROUND($I12*F$5/$I$5,0) -> 107 | G12: =ROUND($I12*G$5/$I$5,0) -> 107 | H12: =ROUND($I12*H$5/$I$5,0) -> 107 | I12: =MAX(I11+I$5*0.01,I11*$J$4) -> 1072.652111
A13: 9 | B13: 9 | C13: =ROUND($I13*C$5/$I$5,0) -> 10835 | D13: =ROUND($I13*D$5/$I$5,0) -> 108 | E13: =ROUND($I13*E$5/$I$5,0) -> 1083 | F13: =ROUND($I13*F$5/$I$5,0) -> 108 | G13: =ROUND($I13*G$5/$I$5,0) -> 108 | H13: =ROUND($I13*H$5/$I$5,0) -> 108 | I13: =MAX(I12+I$5*0.01,I12*$J$4) -> 1083.453214
A14: 10 | B14: 10 | C14: =ROUND($I14*C$5/$I$5,0) -> 10944 | D14: =ROUND($I14*D$5/$I$5,0) -> 109 | E14: =ROUND($I14*E$5/$I$5,0) -> 1094 | F14: =ROUND($I14*F$5/$I$5,0) -> 109 | G14: =ROUND($I14*G$5/$I$5,0) -> 109 | H14: =ROUND($I14*H$5/$I$5,0) -> 109 | I14: =MAX(I13+I$5*0.01,I13*$J$4) -> 1094.363079
A15: 11 | B15: 11 | C15: =ROUND($I15*C$5/$I$5,0) -> 11054 | D15: =ROUND($I15*D$5/$I$5,0) -> 111 | E15: =ROUND($I15*E$5/$I$5,0) -> 1105 | F15: =ROUND($I15*F$5/$I$5,0) -> 111 | G15: =ROUND($I15*G$5/$I$5,0) -> 111 | H15: =ROUND($I15*H$5/$I$5,0) -> 111 | I15: =MAX(I14+I$5*0.01,I14*$J$4) -> 1105.3828
A16: 12 | B16: 12 | C16: =ROUND($I16*C$5/$I$5,0) -> 11165 | D16: =ROUND($I16*D$5/$I$5,0) -> 112 | E16: =ROUND($I16*E$5/$I$5,0) -> 1117 | F16: =ROUND($I16*F$5/$I$5,0) -> 112 | G16: =ROUND($I16*G$5/$I$5,0) -> 112 | H16: =ROUND($I16*H$5/$I$5,0) -> 112 | I16: =MAX(I15+I$5*0.01,I15*$J$4) -> 1116.513486
A17: 13 | B17: 13 | C17: =ROUND($I17*C$5/$I$5,0) -> 11278 | D17: =ROUND($I17*D$5/$I$5,0) -> 113 | E17: =ROUND($I17*E$5/$I$5,0) -> 1128 | F17: =ROUND($I17*F$5/$I$5,0) -> 113 | G17: =ROUND($I17*G$5/$I$5,0) -> 113 | H17: =ROUND($I17*H$5/$I$5,0) -> 113 | I17: =MAX(I16+I$5*0.01,I16*$J$4) -> 1127.756252
A18: 14 | B18: 14 | C18: =ROUND($I18*C$5/$I$5,0) -> 11391 | D18: =ROUND($I18*D$5/$I$5,0) -> 114 | E18: =ROUND($I18*E$5/$I$5,0) -> 1139 | F18: =ROUND($I18*F$5/$I$5,0) -> 114 | G18: =ROUND($I18*G$5/$I$5,0) -> 114 | H18: =ROUND($I18*H$5/$I$5,0) -> 114 | I18: =MAX(I17+I$5*0.01,I17*$J$4) -> 1139.112227
A19: 15 | B19: 15 | C19: =ROUND($I19*C$5/$I$5,0) -> 11506 | D19: =ROUND($I19*D$5/$I$5,0) -> 115 | E19: =ROUND($I19*E$5/$I$5,0) -> 1151 | F19: =ROUND($I19*F$5/$I$5,0) -> 115 | G19: =ROUND($I19*G$5/$I$5,0) -> 115 | H19: =ROUND($I19*H$5/$I$5,0) -> 115 | I19: =MAX(I18+I$5*0.01,I18*$J$4) -> 1150.582552
A20: 16 | B20: 16 | C20: =ROUND($I20*C$5/$I$5,0) -> 11622 | D20: =ROUND($I20*D$5/$I$5,0) -> 116 | E20: =ROUND($I20*E$5/$I$5,0) -> 1162 | F20: =ROUND($I20*F$5/$I$5,0) -> 116 | G20: =ROUND($I20*G$5/$I$5,0) -> 116 | H20: =ROUND($I20*H$5/$I$5,0) -> 116 | I20: =MAX(I19+I$5*0.01,I19*$J$4) -> 1162.168377
A21: 17 | B21: 17 | C21: =ROUND($I21*C$5/$I$5,0) -> 11739 | D21: =ROUND($I21*D$5/$I$5,0) -> 117 | E21: =ROUND($I21*E$5/$I$5,0) -> 1174 | F21: =ROUND($I21*F$5/$I$5,0) -> 117 | G21: =ROUND($I21*G$5/$I$5,0) -> 117 | H21: =ROUND($I21*H$5/$I$5,0) -> 117 | I21: =MAX(I20+I$5*0.01,I20*$J$4) -> 1173.870867
A22: 18 | B22: 18 | C22: =ROUND($I22*C$5/$I$5,0) -> 11857 | D22: =ROUND($I22*D$5/$I$5,0) -> 119 | E22: =ROUND($I22*E$5/$I$5,0) -> 1186 | F22: =ROUND($I22*F$5/$I$5,0) -> 119 | G22: =ROUND($I22*G$5/$I$5,0) -> 119 | H22: =ROUND($I22*H$5/$I$5,0) -> 119 | I22: =MAX(I21+I$5*0.01,I21*$J$4) -> 1185.691195
A23: 19 | B23: 19 | C23: =ROUND($I23*C$5/$I$5,0) -> 11976 | D23: =ROUND($I23*D$5/$I$5,0) -> 120 | E23: =ROUND($I23*E$5/$I$5,0) -> 1198 | F23: =ROUND($I23*F$5/$I$5,0) -> 120 | G23: =ROUND($I23*G$5/$I$5,0) -> 120 | H23: =ROUND($I23*H$5/$I$5,0) -> 120 | I23: =MAX(I22+I$5*0.01,I22*$J$4) -> 1197.630548
A24: 20 | B24: 20 | C24: =ROUND($I24*C$5/$I$5,0) -> 12097 | D24: =ROUND($I24*D$5/$I$5,0) -> 121 | E24: =ROUND($I24*E$5/$I$5,0) -> 1210 | F24: =ROUND($I24*F$5/$I$5,0) -> 121 | G24: =ROUND($I24*G$5/$I$5,0) -> 121 | H24: =ROUND($I24*H$5/$I$5,0) -> 121 | I24: =MAX(I23+I$5*0.01,I23*$J$4) -> 1209.690124
A25: 21 | B25: 21 | C25: =ROUND($I25*C$5/$I$5,0) -> 12219 | D25: =ROUND($I25*D$5/$I$5,0) -> 122 | E25: =ROUND($I25*E$5/$I$5,0) -> 1222 | F25: =ROUND($I25*F$5/$I$5,0) -> 122 | G25: =ROUND($I25*G$5/$I$5,0) -> 122 | H25: =ROUND($I25*H$5/$I$5,0) -> 122 | I25: =MAX(I24+I$5*0.01,I24*$J$4) -> 1221.871135
A26: 22 | B26: 22 | C26: =ROUND($I26*C$5/$I$5,0) -> 12342 | D26: =ROUND($I26*D$5/$I$5,0) -> 123 | E26: =ROUND($I26*E$5/$I$5,0) -> 1234 | F26: =ROUND($I26*F$5/$I$5,0) -> 123 | G26: =ROUND($I26*G$5/$I$5,0) -> 123 | H26: =ROUND($I26*H$5/$I$5,0) -> 123 | I26: =MAX(I25+I$5*0.01,I25*$J$4) -> 1234.174803
A27: 23 | B27: 23 | C27: =ROUND($I27*C$5/$I$5,0) -> 12466 | D27: =ROUND($I27*D$5/$I$5,0) -> 125 | E27: =ROUND($I27*E$5/$I$5,0) -> 1247 | F27: =ROUND($I27*F$5/$I$5,0) -> 125 | G27: =ROUND($I27*G$5/$I$5,0) -> 125 | H27: =ROUND($I27*H$5/$I$5,0) -> 125 | I27: =MAX(I26+I$5*0.01,I26*$J$4) -> 1246.602364
A28: 24 | B28: 24 | C28: =ROUND($I28*C$5/$I$5,0) -> 12592 | D28: =ROUND($I28*D$5/$I$5,0) -> 126 | E28: =ROUND($I28*E$5/$I$5,0) -> 1259 | F28: =ROUND($I28*F$5/$I$5,0) -> 126 | G28: =ROUND($I28*G$5/$I$5,0) -> 126 | H28: =ROUND($I28*H$5/$I$5,0) -> 126 | I28: =MAX(I27+I$5*0.01,I27*$J$4) -> 1259.155064
A29: 25 | B29: 25 | C29: =ROUND($I29*C$5/$I$5,0) -> 12718 | D29: =ROUND($I29*D$5/$I$5,0) -> 127 | E29: =ROUND($I29*E$5/$I$5,0) -> 1272 | F29: =ROUND($I29*F$5/$I$5,0) -> 127 | G29: =ROUND($I29*G$5/$I$5,0) -> 127 | H29: =ROUND($I29*H$5/$I$5,0) -> 127 | I29: =MAX(I28+I$5*0.01,I28*$J$4) -> 1271.834163
A30: 26 | B30: 26 | C30: =ROUND($I30*C$5/$I$5,0) -> 12846 | D30: =ROUND($I30*D$5/$I$5,0) -> 128 | E30: =ROUND($I30*E$5/$I$5,0) -> 1285 | F30: =ROUND($I30*F$5/$I$5,0) -> 128 | G30: =ROUND($I30*G$5/$I$5,0) -> 128 | H30: =ROUND($I30*H$5/$I$5,0) -> 128 | I30: =MAX(I29+I$5*0.01,I29*$J$4) -> 1284.640936
A31: 27 | B31: 27 | C31: =ROUND($I31*C$5/$I$5,0) -> 12976 | D31: =ROUND($I31*D$5/$I$5,0) -> 130 | E31: =ROUND($I31*E$5/$I$5,0) -> 1298 | F31: =ROUND($I31*F$5/$I$5,0) -> 130 | G31: =ROUND($I31*G$5/$I$5,0) -> 130 | H31: =ROUND($I31*H$5/$I$5,0) -> 130 | I31: =MAX(I30+I$5*0.01,I30*$J$4) -> 1297.576666
A32: 28 | B32: 28 | C32: =ROUND($I32*C$5/$I$5,0) -> 13106 | D32: =ROUND($I32*D$5/$I$5,0) -> 131 | E32: =ROUND($I32*E$5/$I$5,0) -> 1311 | F32: =ROUND($I32*F$5/$I$5,0) -> 131 | G32: =ROUND($I32*G$5/$I$5,0) -> 131 | H32: =ROUND($I32*H$5/$I$5,0) -> 131 | I32: =MAX(I31+I$5*0.01,I31*$J$4) -> 1310.642653
A33: 29 | B33: 29 | C33: =ROUND($I33*C$5/$I$5,0) -> 13238 | D33: =ROUND($I33*D$5/$I$5,0) -> 132 | E33: =ROUND($I33*E$5/$I$5,0) -> 1324 | F33: =ROUND($I33*F$5/$I$5,0) -> 132 | G33: =ROUND($I33*G$5/$I$5,0) -> 132 | H33: =ROUND($I33*H$5/$I$5,0) -> 132 | I33: =MAX(I32+I$5*0.01,I32*$J$4) -> 1323.840209
A34: 30 | B34: 30 | C34: =ROUND($I34*C$5/$I$5,0) -> 13372 | D34: =ROUND($I34*D$5/$I$5,0) -> 134 | E34: =ROUND($I34*E$5/$I$5,0) -> 1337 | F34: =ROUND($I34*F$5/$I$5,0) -> 134 | G34: =ROUND($I34*G$5/$I$5,0) -> 134 | H34: =ROUND($I34*H$5/$I$5,0) -> 134 | I34: =MAX(I33+I$5*0.01,I33*$J$4) -> 1337.170657
A35: 31 | B35: 31 | C35: =ROUND($I35*C$5/$I$5,0) -> 13506 | D35: =ROUND($I35*D$5/$I$5,0) -> 135 | E35: =ROUND($I35*E$5/$I$5,0) -> 1351 | F35: =ROUND($I35*F$5/$I$5,0) -> 135 | G35: =ROUND($I35*G$5/$I$5,0) -> 135 | H35: =ROUND($I35*H$5/$I$5,0) -> 135 | I35: =MAX(I34+I$5*0.01,I34*$J$4) -> 1350.635337
A36: 32 | B36: 32 | C36: =ROUND($I36*C$5/$I$5,0) -> 13642 | D36: =ROUND($I36*D$5/$I$5,0) -> 136 | E36: =ROUND($I36*E$5/$I$5,0) -> 1364 | F36: =ROUND($I36*F$5/$I$5,0) -> 136 | G36: =ROUND($I36*G$5/$I$5,0) -> 136 | H36: =ROUND($I36*H$5/$I$5,0) -> 136 | I36: =MAX(I35+I$5*0.01,I35*$J$4) -> 1364.2356
A37: 33 | B37: 33 | C37: =ROUND($I37*C$5/$I$5,0) -> 13780 | D37: =ROUND($I37*D$5/$I$5,0) -> 138 | E37: =ROUND($I37*E$5/$I$5,0) -> 1378 | F37: =ROUND($I37*F$5/$I$5,0) -> 138 | G37: =ROUND($I37*G$5/$I$5,0) -> 138 | H37: =ROUND($I37*H$5/$I$5,0) -> 138 | I37: =MAX(I36+I$5*0.01,I36*$J$4) -> 1377.972812
A38: 34 | B38: 34 | C38: =ROUND($I38*C$5/$I$5,0) -> 13918 | D38: =ROUND($I38*D$5/$I$5,0) -> 139 | E38: =ROUND($I38*E$5/$I$5,0) -> 1392 | F38: =ROUND($I38*F$5/$I$5,0) -> 139 | G38: =ROUND($I38*G$5/$I$5,0) -> 139 | H38: =ROUND($I38*H$5/$I$5,0) -> 139 | I38: =MAX(I37+I$5*0.01,I37*$J$4) -> 1391.84835
A39: 35 | B39: 35 | C39: =ROUND($I39*C$5/$I$5,0) -> 14059 | D39: =ROUND($I39*D$5/$I$5,0) -> 141 | E39: =ROUND($I39*E$5/$I$5,0) -> 1406 | F39: =ROUND($I39*F$5/$I$5,0) -> 141 | G39: =ROUND($I39*G$5/$I$5,0) -> 141 | H39: =ROUND($I39*H$5/$I$5,0) -> 141 | I39: =MAX(I38+I$5*0.01,I38*$J$4) -> 1405.863609
A40: 36 | B40: 36 | C40: =ROUND($I40*C$5/$I$5,0) -> 14200 | D40: =ROUND($I40*D$5/$I$5,0) -> 142 | E40: =ROUND($I40*E$5/$I$5,0) -> 1420 | F40: =ROUND($I40*F$5/$I$5,0) -> 142 | G40: =ROUND($I40*G$5/$I$5,0) -> 142 | H40: =ROUND($I40*H$5/$I$5,0) -> 142 | I40: =MAX(I39+I$5*0.01,I39*$J$4) -> 1420.019995
A41: 37 | B41: 37 | C41: =ROUND($I41*C$5/$I$5,0) -> 14343 | D41: =ROUND($I41*D$5/$I$5,0) -> 143 | E41: =ROUND($I41*E$5/$I$5,0) -> 1434 | F41: =ROUND($I41*F$5/$I$5,0) -> 143 | G41: =ROUND($I41*G$5/$I$5,0) -> 143 | H41: =ROUND($I41*H$5/$I$5,0) -> 143 | I41: =MAX(I40+I$5*0.01,I40*$J$4) -> 1434.318929
A42: 38 | B42: 38 | C42: =ROUND($I42*C$5/$I$5,0) -> 14488 | D42: =ROUND($I42*D$5/$I$5,0) -> 145 | E42: =ROUND($I42*E$5/$I$5,0) -> 1449 | F42: =ROUND($I42*F$5/$I$5,0) -> 145 | G42: =ROUND($I42*G$5/$I$5,0) -> 145 | H42: =ROUND($I42*H$5/$I$5,0) -> 145 | I42: =MAX(I41+I$5*0.01,I41*$J$4) -> 1448.761846
A43: 39 | B43: 39 | C43: =ROUND($I43*C$5/$I$5,0) -> 14634 | D43: =ROUND($I43*D$5/$I$5,0) -> 146 | E43: =ROUND($I43*E$5/$I$5,0) -> 1463 | F43: =ROUND($I43*F$5/$I$5,0) -> 146 | G43: =ROUND($I43*G$5/$I$5,0) -> 146 | H43: =ROUND($I43*H$5/$I$5,0) -> 146 | I43: =MAX(I42+I$5*0.01,I42*$J$4) -> 1463.350197
A44: 40 | B44: 40 | C44: =ROUND($I44*C$5/$I$5,0) -> 14781 | D44: =ROUND($I44*D$5/$I$5,0) -> 148 | E44: =ROUND($I44*E$5/$I$5,0) -> 1478 | F44: =ROUND($I44*F$5/$I$5,0) -> 148 | G44: =ROUND($I44*G$5/$I$5,0) -> 148 | H44: =ROUND($I44*H$5/$I$5,0) -> 148 | I44: =MAX(I43+I$5*0.01,I43*$J$4) -> 1478.085446
A45: 41 | B45: 41 | C45: =ROUND($I45*C$5/$I$5,0) -> 14930 | D45: =ROUND($I45*D$5/$I$5,0) -> 149 | E45: =ROUND($I45*E$5/$I$5,0) -> 1493 | F45: =ROUND($I45*F$5/$I$5,0) -> 149 | G45: =ROUND($I45*G$5/$I$5,0) -> 149 | H45: =ROUND($I45*H$5/$I$5,0) -> 149 | I45: =MAX(I44+I$5*0.01,I44*$J$4) -> 1492.969072
A46: 42 | B46: 42 | C46: =ROUND($I46*C$5/$I$5,0) -> 15080 | D46: =ROUND($I46*D$5/$I$5,0) -> 151 | E46: =ROUND($I46*E$5/$I$5,0) -> 1508 | F46: =ROUND($I46*F$5/$I$5,0) -> 151 | G46: =ROUND($I46*G$5/$I$5,0) -> 151 | H46: =ROUND($I46*H$5/$I$5,0) -> 151 | I46: =MAX(I45+I$5*0.01,I45*$J$4) -> 1508.002568
A47: 43 | B47: 43 | C47: =ROUND($I47*C$5/$I$5,0) -> 15232 | D47: =ROUND($I47*D$5/$I$5,0) -> 152 | E47: =ROUND($I47*E$5/$I$5,0) -> 1523 | F47: =ROUND($I47*F$5/$I$5,0) -> 152 | G47: =ROUND($I47*G$5/$I$5,0) -> 152 | H47: =ROUND($I47*H$5/$I$5,0) -> 152 | I47: =MAX(I46+I$5*0.01,I46*$J$4) -> 1523.187446
A48: 44 | B48: 44 | C48: =ROUND($I48*C$5/$I$5,0) -> 15385 | D48: =ROUND($I48*D$5/$I$5,0) -> 154 | E48: =ROUND($I48*E$5/$I$5,0) -> 1539 | F48: =ROUND($I48*F$5/$I$5,0) -> 154 | G48: =ROUND($I48*G$5/$I$5,0) -> 154 | H48: =ROUND($I48*H$5/$I$5,0) -> 154 | I48: =MAX(I47+I$5*0.01,I47*$J$4) -> 1538.525227
A49: 45 | B49: 45 | C49: =ROUND($I49*C$5/$I$5,0) -> 15540 | D49: =ROUND($I49*D$5/$I$5,0) -> 155 | E49: =ROUND($I49*E$5/$I$5,0) -> 1554 | F49: =ROUND($I49*F$5/$I$5,0) -> 155 | G49: =ROUND($I49*G$5/$I$5,0) -> 155 | H49: =ROUND($I49*H$5/$I$5,0) -> 155 | I49: =MAX(I48+I$5*0.01,I48*$J$4) -> 1554.017453
A50: 46 | B50: 46 | C50: =ROUND($I50*C$5/$I$5,0) -> 15697 | D50: =ROUND($I50*D$5/$I$5,0) -> 157 | E50: =ROUND($I50*E$5/$I$5,0) -> 1570 | F50: =ROUND($I50*F$5/$I$5,0) -> 157 | G50: =ROUND($I50*G$5/$I$5,0) -> 157 | H50: =ROUND($I50*H$5/$I$5,0) -> 157 | I50: =MAX(I49+I$5*0.01,I49*$J$4) -> 1569.665678
A51: 47 | B51: 47 | C51: =ROUND($I51*C$5/$I$5,0) -> 15855 | D51: =ROUND($I51*D$5/$I$5,0) -> 159 | E51: =ROUND($I51*E$5/$I$5,0) -> 1585 | F51: =ROUND($I51*F$5/$I$5,0) -> 159 | G51: =ROUND($I51*G$5/$I$5,0) -> 159 | H51: =ROUND($I51*H$5/$I$5,0) -> 159 | I51: =MAX(I50+I$5*0.01,I50*$J$4) -> 1585.471474
A52: 48 | B52: 48 | C52: =ROUND($I52*C$5/$I$5,0) -> 16014 | D52: =ROUND($I52*D$5/$I$5,0) -> 160 | E52: =ROUND($I52*E$5/$I$5,0) -> 1601 | F52: =ROUND($I52*F$5/$I$5,0) -> 160 | G52: =ROUND($I52*G$5/$I$5,0) -> 160 | H52: =ROUND($I52*H$5/$I$5,0) -> 160 | I52: =MAX(I51+I$5*0.01,I51*$J$4) -> 1601.436427
A53: 49 | B53: 49 | C53: =ROUND($I53*C$5/$I$5,0) -> 16176 | D53: =ROUND($I53*D$5/$I$5,0) -> 162 | E53: =ROUND($I53*E$5/$I$5,0) -> 1618 | F53: =ROUND($I53*F$5/$I$5,0) -> 162 | G53: =ROUND($I53*G$5/$I$5,0) -> 162 | H53: =ROUND($I53*H$5/$I$5,0) -> 162 | I53: =MAX(I52+I$5*0.01,I52*$J$4) -> 1617.562139
A54: 50 | B54: 50 | C54: =ROUND($I54*C$5/$I$5,0) -> 16339 | D54: =ROUND($I54*D$5/$I$5,0) -> 163 | E54: =ROUND($I54*E$5/$I$5,0) -> 1634 | F54: =ROUND($I54*F$5/$I$5,0) -> 163 | G54: =ROUND($I54*G$5/$I$5,0) -> 163 | H54: =ROUND($I54*H$5/$I$5,0) -> 163 | I54: =MAX(I53+I$5*0.01,I53*$J$4) -> 1633.850229
A55: 51 | B55: 51 | C55: =ROUND($I55*C$5/$I$5,0) -> 16503 | D55: =ROUND($I55*D$5/$I$5,0) -> 165 | E55: =ROUND($I55*E$5/$I$5,0) -> 1650 | F55: =ROUND($I55*F$5/$I$5,0) -> 165 | G55: =ROUND($I55*G$5/$I$5,0) -> 165 | H55: =ROUND($I55*H$5/$I$5,0) -> 165 | I55: =MAX(I54+I$5*0.01,I54*$J$4) -> 1650.302333
A56: 52 | B56: 52 | C56: =ROUND($I56*C$5/$I$5,0) -> 16669 | D56: =ROUND($I56*D$5/$I$5,0) -> 167 | E56: =ROUND($I56*E$5/$I$5,0) -> 1667 | F56: =ROUND($I56*F$5/$I$5,0) -> 167 | G56: =ROUND($I56*G$5/$I$5,0) -> 167 | H56: =ROUND($I56*H$5/$I$5,0) -> 167 | I56: =MAX(I55+I$5*0.01,I55*$J$4) -> 1666.920102
A57: 53 | B57: 53 | C57: =ROUND($I57*C$5/$I$5,0) -> 16837 | D57: =ROUND($I57*D$5/$I$5,0) -> 168 | E57: =ROUND($I57*E$5/$I$5,0) -> 1684 | F57: =ROUND($I57*F$5/$I$5,0) -> 168 | G57: =ROUND($I57*G$5/$I$5,0) -> 168 | H57: =ROUND($I57*H$5/$I$5,0) -> 168 | I57: =MAX(I56+I$5*0.01,I56*$J$4) -> 1683.705204
A58: 54 | B58: 54 | C58: =ROUND($I58*C$5/$I$5,0) -> 17007 | D58: =ROUND($I58*D$5/$I$5,0) -> 170 | E58: =ROUND($I58*E$5/$I$5,0) -> 1701 | F58: =ROUND($I58*F$5/$I$5,0) -> 170 | G58: =ROUND($I58*G$5/$I$5,0) -> 170 | H58: =ROUND($I58*H$5/$I$5,0) -> 170 | I58: =MAX(I57+I$5*0.01,I57*$J$4) -> 1700.659324
A59: 55 | B59: 55 | C59: =ROUND($I59*C$5/$I$5,0) -> 17178 | D59: =ROUND($I59*D$5/$I$5,0) -> 172 | E59: =ROUND($I59*E$5/$I$5,0) -> 1718 | F59: =ROUND($I59*F$5/$I$5,0) -> 172 | G59: =ROUND($I59*G$5/$I$5,0) -> 172 | H59: =ROUND($I59*H$5/$I$5,0) -> 172 | I59: =MAX(I58+I$5*0.01,I58*$J$4) -> 1717.784164
A60: 56 | B60: 56 | C60: =ROUND($I60*C$5/$I$5,0) -> 17351 | D60: =ROUND($I60*D$5/$I$5,0) -> 174 | E60: =ROUND($I60*E$5/$I$5,0) -> 1735 | F60: =ROUND($I60*F$5/$I$5,0) -> 174 | G60: =ROUND($I60*G$5/$I$5,0) -> 174 | H60: =ROUND($I60*H$5/$I$5,0) -> 174 | I60: =MAX(I59+I$5*0.01,I59*$J$4) -> 1735.081443
A61: 57 | B61: 57 | C61: =ROUND($I61*C$5/$I$5,0) -> 17526 | D61: =ROUND($I61*D$5/$I$5,0) -> 175 | E61: =ROUND($I61*E$5/$I$5,0) -> 1753 | F61: =ROUND($I61*F$5/$I$5,0) -> 175 | G61: =ROUND($I61*G$5/$I$5,0) -> 175 | H61: =ROUND($I61*H$5/$I$5,0) -> 175 | I61: =MAX(I60+I$5*0.01,I60*$J$4) -> 1752.552898
A62: 58 | B62: 58 | C62: =ROUND($I62*C$5/$I$5,0) -> 17702 | D62: =ROUND($I62*D$5/$I$5,0) -> 177 | E62: =ROUND($I62*E$5/$I$5,0) -> 1770 | F62: =ROUND($I62*F$5/$I$5,0) -> 177 | G62: =ROUND($I62*G$5/$I$5,0) -> 177 | H62: =ROUND($I62*H$5/$I$5,0) -> 177 | I62: =MAX(I61+I$5*0.01,I61*$J$4) -> 1770.200282
A63: 59 | B63: 59 | C63: =ROUND($I63*C$5/$I$5,0) -> 17880 | D63: =ROUND($I63*D$5/$I$5,0) -> 179 | E63: =ROUND($I63*E$5/$I$5,0) -> 1788 | F63: =ROUND($I63*F$5/$I$5,0) -> 179 | G63: =ROUND($I63*G$5/$I$5,0) -> 179 | H63: =ROUND($I63*H$5/$I$5,0) -> 179 | I63: =MAX(I62+I$5*0.01,I62*$J$4) -> 1788.025367
A64: 60 | B64: 60 | C64: =ROUND($I64*C$5/$I$5,0) -> 18060 | D64: =ROUND($I64*D$5/$I$5,0) -> 181 | E64: =ROUND($I64*E$5/$I$5,0) -> 1806 | F64: =ROUND($I64*F$5/$I$5,0) -> 181 | G64: =ROUND($I64*G$5/$I$5,0) -> 181 | H64: =ROUND($I64*H$5/$I$5,0) -> 181 | I64: =MAX(I63+I$5*0.01,I63*$J$4) -> 1806.029942
A65: 61 | B65: 61 | C65: =ROUND($I65*C$5/$I$5,0) -> 18242 | D65: =ROUND($I65*D$5/$I$5,0) -> 182 | E65: =ROUND($I65*E$5/$I$5,0) -> 1824 | F65: =ROUND($I65*F$5/$I$5,0) -> 182 | G65: =ROUND($I65*G$5/$I$5,0) -> 182 | H65: =ROUND($I65*H$5/$I$5,0) -> 182 | I65: =MAX(I64+I$5*0.01,I64*$J$4) -> 1824.215815
A66: 62 | B66: 62 | C66: =ROUND($I66*C$5/$I$5,0) -> 18426 | D66: =ROUND($I66*D$5/$I$5,0) -> 184 | E66: =ROUND($I66*E$5/$I$5,0) -> 1843 | F66: =ROUND($I66*F$5/$I$5,0) -> 184 | G66: =ROUND($I66*G$5/$I$5,0) -> 184 | H66: =ROUND($I66*H$5/$I$5,0) -> 184 | I66: =MAX(I65+I$5*0.01,I65*$J$4) -> 1842.58481
A67: 63 | B67: 63 | C67: =ROUND($I67*C$5/$I$5,0) -> 18611 | D67: =ROUND($I67*D$5/$I$5,0) -> 186 | E67: =ROUND($I67*E$5/$I$5,0) -> 1861 | F67: =ROUND($I67*F$5/$I$5,0) -> 186 | G67: =ROUND($I67*G$5/$I$5,0) -> 186 | H67: =ROUND($I67*H$5/$I$5,0) -> 186 | I67: =MAX(I66+I$5*0.01,I66*$J$4) -> 1861.138774
A68: 64 | B68: 64 | C68: =ROUND($I68*C$5/$I$5,0) -> 18799 | D68: =ROUND($I68*D$5/$I$5,0) -> 188 | E68: =ROUND($I68*E$5/$I$5,0) -> 1880 | F68: =ROUND($I68*F$5/$I$5,0) -> 188 | G68: =ROUND($I68*G$5/$I$5,0) -> 188 | H68: =ROUND($I68*H$5/$I$5,0) -> 188 | I68: =MAX(I67+I$5*0.01,I67*$J$4) -> 1879.879566
A69: 65 | B69: 65 | C69: =ROUND($I69*C$5/$I$5,0) -> 18988 | D69: =ROUND($I69*D$5/$I$5,0) -> 190 | E69: =ROUND($I69*E$5/$I$5,0) -> 1899 | F69: =ROUND($I69*F$5/$I$5,0) -> 190 | G69: =ROUND($I69*G$5/$I$5,0) -> 190 | H69: =ROUND($I69*H$5/$I$5,0) -> 190 | I69: =MAX(I68+I$5*0.01,I68*$J$4) -> 1898.80907
A70: 66 | B70: 66 | C70: =ROUND($I70*C$5/$I$5,0) -> 19179 | D70: =ROUND($I70*D$5/$I$5,0) -> 192 | E70: =ROUND($I70*E$5/$I$5,0) -> 1918 | F70: =ROUND($I70*F$5/$I$5,0) -> 192 | G70: =ROUND($I70*G$5/$I$5,0) -> 192 | H70: =ROUND($I70*H$5/$I$5,0) -> 192 | I70: =MAX(I69+I$5*0.01,I69*$J$4) -> 1917.929185
A71: 67 | B71: 67 | C71: =ROUND($I71*C$5/$I$5,0) -> 19372 | D71: =ROUND($I71*D$5/$I$5,0) -> 194 | E71: =ROUND($I71*E$5/$I$5,0) -> 1937 | F71: =ROUND($I71*F$5/$I$5,0) -> 194 | G71: =ROUND($I71*G$5/$I$5,0) -> 194 | H71: =ROUND($I71*H$5/$I$5,0) -> 194 | I71: =MAX(I70+I$5*0.01,I70*$J$4) -> 1937.24183
A72: 68 | B72: 68 | C72: =ROUND($I72*C$5/$I$5,0) -> 19567 | D72: =ROUND($I72*D$5/$I$5,0) -> 196 | E72: =ROUND($I72*E$5/$I$5,0) -> 1957 | F72: =ROUND($I72*F$5/$I$5,0) -> 196 | G72: =ROUND($I72*G$5/$I$5,0) -> 196 | H72: =ROUND($I72*H$5/$I$5,0) -> 196 | I72: =MAX(I71+I$5*0.01,I71*$J$4) -> 1956.748945
A73: 69 | B73: 69 | C73: =ROUND($I73*C$5/$I$5,0) -> 19765 | D73: =ROUND($I73*D$5/$I$5,0) -> 198 | E73: =ROUND($I73*E$5/$I$5,0) -> 1976 | F73: =ROUND($I73*F$5/$I$5,0) -> 198 | G73: =ROUND($I73*G$5/$I$5,0) -> 198 | H73: =ROUND($I73*H$5/$I$5,0) -> 198 | I73: =MAX(I72+I$5*0.01,I72*$J$4) -> 1976.452487
A74: 70 | B74: 70 | C74: =ROUND($I74*C$5/$I$5,0) -> 19964 | D74: =ROUND($I74*D$5/$I$5,0) -> 200 | E74: =ROUND($I74*E$5/$I$5,0) -> 1996 | F74: =ROUND($I74*F$5/$I$5,0) -> 200 | G74: =ROUND($I74*G$5/$I$5,0) -> 200 | H74: =ROUND($I74*H$5/$I$5,0) -> 200 | I74: =MAX(I73+I$5*0.01,I73*$J$4) -> 1996.354435
A75: 71 | B75: 71 | C75: =ROUND($I75*C$5/$I$5,0) -> 20165 | D75: =ROUND($I75*D$5/$I$5,0) -> 202 | E75: =ROUND($I75*E$5/$I$5,0) -> 2016 | F75: =ROUND($I75*F$5/$I$5,0) -> 202 | G75: =ROUND($I75*G$5/$I$5,0) -> 202 | H75: =ROUND($I75*H$5/$I$5,0) -> 202 | I75: =MAX(I74+I$5*0.01,I74*$J$4) -> 2016.456786
A76: 72 | B76: 72 | C76: =ROUND($I76*C$5/$I$5,0) -> 20368 | D76: =ROUND($I76*D$5/$I$5,0) -> 204 | E76: =ROUND($I76*E$5/$I$5,0) -> 2037 | F76: =ROUND($I76*F$5/$I$5,0) -> 204 | G76: =ROUND($I76*G$5/$I$5,0) -> 204 | H76: =ROUND($I76*H$5/$I$5,0) -> 204 | I76: =MAX(I75+I$5*0.01,I75*$J$4) -> 2036.761558
A77: 73 | B77: 73 | C77: =ROUND($I77*C$5/$I$5,0) -> 20573 | D77: =ROUND($I77*D$5/$I$5,0) -> 206 | E77: =ROUND($I77*E$5/$I$5,0) -> 2057 | F77: =ROUND($I77*F$5/$I$5,0) -> 206 | G77: =ROUND($I77*G$5/$I$5,0) -> 206 | H77: =ROUND($I77*H$5/$I$5,0) -> 206 | I77: =MAX(I76+I$5*0.01,I76*$J$4) -> 2057.270789
A78: 74 | B78: 74 | C78: =ROUND($I78*C$5/$I$5,0) -> 20780 | D78: =ROUND($I78*D$5/$I$5,0) -> 208 | E78: =ROUND($I78*E$5/$I$5,0) -> 2078 | F78: =ROUND($I78*F$5/$I$5,0) -> 208 | G78: =ROUND($I78*G$5/$I$5,0) -> 208 | H78: =ROUND($I78*H$5/$I$5,0) -> 208 | I78: =MAX(I77+I$5*0.01,I77*$J$4) -> 2077.986539
A79: 75 | B79: 75 | C79: =ROUND($I79*C$5/$I$5,0) -> 20989 | D79: =ROUND($I79*D$5/$I$5,0) -> 210 | E79: =ROUND($I79*E$5/$I$5,0) -> 2099 | F79: =ROUND($I79*F$5/$I$5,0) -> 210 | G79: =ROUND($I79*G$5/$I$5,0) -> 210 | H79: =ROUND($I79*H$5/$I$5,0) -> 210 | I79: =MAX(I78+I$5*0.01,I78*$J$4) -> 2098.910887
A80: 76 | B80: 76 | C80: =ROUND($I80*C$5/$I$5,0) -> 21200 | D80: =ROUND($I80*D$5/$I$5,0) -> 212 | E80: =ROUND($I80*E$5/$I$5,0) -> 2120 | F80: =ROUND($I80*F$5/$I$5,0) -> 212 | G80: =ROUND($I80*G$5/$I$5,0) -> 212 | H80: =ROUND($I80*H$5/$I$5,0) -> 212 | I80: =MAX(I79+I$5*0.01,I79*$J$4) -> 2120.045933
A81: 77 | B81: 77 | C81: =ROUND($I81*C$5/$I$5,0) -> 21414 | D81: =ROUND($I81*D$5/$I$5,0) -> 214 | E81: =ROUND($I81*E$5/$I$5,0) -> 2141 | F81: =ROUND($I81*F$5/$I$5,0) -> 214 | G81: =ROUND($I81*G$5/$I$5,0) -> 214 | H81: =ROUND($I81*H$5/$I$5,0) -> 214 | I81: =MAX(I80+I$5*0.01,I80*$J$4) -> 2141.393799
A82: 78 | B82: 78 | C82: =ROUND($I82*C$5/$I$5,0) -> 21630 | D82: =ROUND($I82*D$5/$I$5,0) -> 216 | E82: =ROUND($I82*E$5/$I$5,0) -> 2163 | F82: =ROUND($I82*F$5/$I$5,0) -> 216 | G82: =ROUND($I82*G$5/$I$5,0) -> 216 | H82: =ROUND($I82*H$5/$I$5,0) -> 216 | I82: =MAX(I81+I$5*0.01,I81*$J$4) -> 2162.956629
A83: 79 | B83: 79 | C83: =ROUND($I83*C$5/$I$5,0) -> 21847 | D83: =ROUND($I83*D$5/$I$5,0) -> 218 | E83: =ROUND($I83*E$5/$I$5,0) -> 2185 | F83: =ROUND($I83*F$5/$I$5,0) -> 218 | G83: =ROUND($I83*G$5/$I$5,0) -> 218 | H83: =ROUND($I83*H$5/$I$5,0) -> 218 | I83: =MAX(I82+I$5*0.01,I82*$J$4) -> 2184.736585
A84: 80 | B84: 80 | C84: =ROUND($I84*C$5/$I$5,0) -> 22067 | D84: =ROUND($I84*D$5/$I$5,0) -> 221 | E84: =ROUND($I84*E$5/$I$5,0) -> 2207 | F84: =ROUND($I84*F$5/$I$5,0) -> 221 | G84: =ROUND($I84*G$5/$I$5,0) -> 221 | H84: =ROUND($I84*H$5/$I$5,0) -> 221 | I84: =MAX(I83+I$5*0.01,I83*$J$4) -> 2206.735856
A85: 81 | B85: 81 | C85: =ROUND($I85*C$5/$I$5,0) -> 22290 | D85: =ROUND($I85*D$5/$I$5,0) -> 223 | E85: =ROUND($I85*E$5/$I$5,0) -> 2229 | F85: =ROUND($I85*F$5/$I$5,0) -> 223 | G85: =ROUND($I85*G$5/$I$5,0) -> 223 | H85: =ROUND($I85*H$5/$I$5,0) -> 223 | I85: =MAX(I84+I$5*0.01,I84*$J$4) -> 2228.956649
A86: 82 | B86: 82 | C86: =ROUND($I86*C$5/$I$5,0) -> 22514 | D86: =ROUND($I86*D$5/$I$5,0) -> 225 | E86: =ROUND($I86*E$5/$I$5,0) -> 2251 | F86: =ROUND($I86*F$5/$I$5,0) -> 225 | G86: =ROUND($I86*G$5/$I$5,0) -> 225 | H86: =ROUND($I86*H$5/$I$5,0) -> 225 | I86: =MAX(I85+I$5*0.01,I85*$J$4) -> 2251.401194
A87: 83 | B87: 83 | C87: =ROUND($I87*C$5/$I$5,0) -> 22741 | D87: =ROUND($I87*D$5/$I$5,0) -> 227 | E87: =ROUND($I87*E$5/$I$5,0) -> 2274 | F87: =ROUND($I87*F$5/$I$5,0) -> 227 | G87: =ROUND($I87*G$5/$I$5,0) -> 227 | H87: =ROUND($I87*H$5/$I$5,0) -> 227 | I87: =MAX(I86+I$5*0.01,I86*$J$4) -> 2274.071746
A88: 84 | B88: 84 | C88: =ROUND($I88*C$5/$I$5,0) -> 22970 | D88: =ROUND($I88*D$5/$I$5,0) -> 230 | E88: =ROUND($I88*E$5/$I$5,0) -> 2297 | F88: =ROUND($I88*F$5/$I$5,0) -> 230 | G88: =ROUND($I88*G$5/$I$5,0) -> 230 | H88: =ROUND($I88*H$5/$I$5,0) -> 230 | I88: =MAX(I87+I$5*0.01,I87*$J$4) -> 2296.97058
A89: 85 | B89: 85 | C89: =ROUND($I89*C$5/$I$5,0) -> 23201 | D89: =ROUND($I89*D$5/$I$5,0) -> 232 | E89: =ROUND($I89*E$5/$I$5,0) -> 2320 | F89: =ROUND($I89*F$5/$I$5,0) -> 232 | G89: =ROUND($I89*G$5/$I$5,0) -> 232 | H89: =ROUND($I89*H$5/$I$5,0) -> 232 | I89: =MAX(I88+I$5*0.01,I88*$J$4) -> 2320.099994
A90: 86 | B90: 86 | C90: =ROUND($I90*C$5/$I$5,0) -> 23435 | D90: =ROUND($I90*D$5/$I$5,0) -> 234 | E90: =ROUND($I90*E$5/$I$5,0) -> 2343 | F90: =ROUND($I90*F$5/$I$5,0) -> 234 | G90: =ROUND($I90*G$5/$I$5,0) -> 234 | H90: =ROUND($I90*H$5/$I$5,0) -> 234 | I90: =MAX(I89+I$5*0.01,I89*$J$4) -> 2343.462311
A91: 87 | B91: 87 | C91: =ROUND($I91*C$5/$I$5,0) -> 23671 | D91: =ROUND($I91*D$5/$I$5,0) -> 237 | E91: =ROUND($I91*E$5/$I$5,0) -> 2367 | F91: =ROUND($I91*F$5/$I$5,0) -> 237 | G91: =ROUND($I91*G$5/$I$5,0) -> 237 | H91: =ROUND($I91*H$5/$I$5,0) -> 237 | I91: =MAX(I90+I$5*0.01,I90*$J$4) -> 2367.059875
A92: 88 | B92: 88 | C92: =ROUND($I92*C$5/$I$5,0) -> 23909 | D92: =ROUND($I92*D$5/$I$5,0) -> 239 | E92: =ROUND($I92*E$5/$I$5,0) -> 2391 | F92: =ROUND($I92*F$5/$I$5,0) -> 239 | G92: =ROUND($I92*G$5/$I$5,0) -> 239 | H92: =ROUND($I92*H$5/$I$5,0) -> 239 | I92: =MAX(I91+I$5*0.01,I91*$J$4) -> 2390.895055
A93: 89 | B93: 89 | C93: =ROUND($I93*C$5/$I$5,0) -> 24150 | D93: =ROUND($I93*D$5/$I$5,0) -> 241 | E93: =ROUND($I93*E$5/$I$5,0) -> 2415 | F93: =ROUND($I93*F$5/$I$5,0) -> 241 | G93: =ROUND($I93*G$5/$I$5,0) -> 241 | H93: =ROUND($I93*H$5/$I$5,0) -> 241 | I93: =MAX(I92+I$5*0.01,I92*$J$4) -> 2414.970245
A94: 90 | B94: 90 | C94: =ROUND($I94*C$5/$I$5,0) -> 24393 | D94: =ROUND($I94*D$5/$I$5,0) -> 244 | E94: =ROUND($I94*E$5/$I$5,0) -> 2439 | F94: =ROUND($I94*F$5/$I$5,0) -> 244 | G94: =ROUND($I94*G$5/$I$5,0) -> 244 | H94: =ROUND($I94*H$5/$I$5,0) -> 244 | I94: =MAX(I93+I$5*0.01,I93*$J$4) -> 2439.28786
A95: 91 | B95: 91 | C95: =ROUND($I95*C$5/$I$5,0) -> 24639 | D95: =ROUND($I95*D$5/$I$5,0) -> 246 | E95: =ROUND($I95*E$5/$I$5,0) -> 2464 | F95: =ROUND($I95*F$5/$I$5,0) -> 246 | G95: =ROUND($I95*G$5/$I$5,0) -> 246 | H95: =ROUND($I95*H$5/$I$5,0) -> 246 | I95: =MAX(I94+I$5*0.01,I94*$J$4) -> 2463.850342
A96: 92 | B96: 92 | C96: =ROUND($I96*C$5/$I$5,0) -> 24887 | D96: =ROUND($I96*D$5/$I$5,0) -> 249 | E96: =ROUND($I96*E$5/$I$5,0) -> 2489 | F96: =ROUND($I96*F$5/$I$5,0) -> 249 | G96: =ROUND($I96*G$5/$I$5,0) -> 249 | H96: =ROUND($I96*H$5/$I$5,0) -> 249 | I96: =MAX(I95+I$5*0.01,I95*$J$4) -> 2488.660157
A97: 93 | B97: 93 | C97: =ROUND($I97*C$5/$I$5,0) -> 25137 | D97: =ROUND($I97*D$5/$I$5,0) -> 251 | E97: =ROUND($I97*E$5/$I$5,0) -> 2514 | F97: =ROUND($I97*F$5/$I$5,0) -> 251 | G97: =ROUND($I97*G$5/$I$5,0) -> 251 | H97: =ROUND($I97*H$5/$I$5,0) -> 251 | I97: =MAX(I96+I$5*0.01,I96*$J$4) -> 2513.719795
A98: 94 | B98: 94 | C98: =ROUND($I98*C$5/$I$5,0) -> 25390 | D98: =ROUND($I98*D$5/$I$5,0) -> 254 | E98: =ROUND($I98*E$5/$I$5,0) -> 2539 | F98: =ROUND($I98*F$5/$I$5,0) -> 254 | G98: =ROUND($I98*G$5/$I$5,0) -> 254 | H98: =ROUND($I98*H$5/$I$5,0) -> 254 | I98: =MAX(I97+I$5*0.01,I97*$J$4) -> 2539.031772
A99: 95 | B99: 95 | C99: =ROUND($I99*C$5/$I$5,0) -> 25646 | D99: =ROUND($I99*D$5/$I$5,0) -> 256 | E99: =ROUND($I99*E$5/$I$5,0) -> 2565 | F99: =ROUND($I99*F$5/$I$5,0) -> 256 | G99: =ROUND($I99*G$5/$I$5,0) -> 256 | H99: =ROUND($I99*H$5/$I$5,0) -> 256 | I99: =MAX(I98+I$5*0.01,I98*$J$4) -> 2564.598629
A100: 96 | B100: 96 | C100: =ROUND($I100*C$5/$I$5,0) -> 25904 | D100: =ROUND($I100*D$5/$I$5,0) -> 259 | E100: =ROUND($I100*E$5/$I$5,0) -> 2590 | F100: =ROUND($I100*F$5/$I$5,0) -> 259 | G100: =ROUND($I100*G$5/$I$5,0) -> 259 | H100: =ROUND($I100*H$5/$I$5,0) -> 259 | I100: =MAX(I99+I$5*0.01,I99*$J$4) -> 2590.422932
A101: 97 | B101: 97 | C101: =ROUND($I101*C$5/$I$5,0) -> 26165 | D101: =ROUND($I101*D$5/$I$5,0) -> 262 | E101: =ROUND($I101*E$5/$I$5,0) -> 2617 | F101: =ROUND($I101*F$5/$I$5,0) -> 262 | G101: =ROUND($I101*G$5/$I$5,0) -> 262 | H101: =ROUND($I101*H$5/$I$5,0) -> 262 | I101: =MAX(I100+I$5*0.01,I100*$J$4) -> 2616.507273
A102: 98 | B102: 98 | C102: =ROUND($I102*C$5/$I$5,0) -> 26429 | D102: =ROUND($I102*D$5/$I$5,0) -> 264 | E102: =ROUND($I102*E$5/$I$5,0) -> 2643 | F102: =ROUND($I102*F$5/$I$5,0) -> 264 | G102: =ROUND($I102*G$5/$I$5,0) -> 264 | H102: =ROUND($I102*H$5/$I$5,0) -> 264 | I102: =MAX(I101+I$5*0.01,I101*$J$4) -> 2642.854272
A103: 99 | B103: 99 | C103: =ROUND($I103*C$5/$I$5,0) -> 26695 | D103: =ROUND($I103*D$5/$I$5,0) -> 267 | E103: =ROUND($I103*E$5/$I$5,0) -> 2669 | F103: =ROUND($I103*F$5/$I$5,0) -> 267 | G103: =ROUND($I103*G$5/$I$5,0) -> 267 | H103: =ROUND($I103*H$5/$I$5,0) -> 267 | I103: =MAX(I102+I$5*0.01,I102*$J$4) -> 2669.466572
A104: 100 | B104: 100 | C104: =ROUND($I104*C$5/$I$5,0) -> 26963 | D104: =ROUND($I104*D$5/$I$5,0) -> 270 | E104: =ROUND($I104*E$5/$I$5,0) -> 2696 | F104: =ROUND($I104*F$5/$I$5,0) -> 270 | G104: =ROUND($I104*G$5/$I$5,0) -> 270 | H104: =ROUND($I104*H$5/$I$5,0) -> 270 | I104: =MAX(I103+I$5*0.01,I103*$J$4) -> 2696.346846
A105: 101 | B105: 101 | C105: =ROUND($I105*C$5/$I$5,0) -> 27235 | D105: =ROUND($I105*D$5/$I$5,0) -> 272 | E105: =ROUND($I105*E$5/$I$5,0) -> 2723 | F105: =ROUND($I105*F$5/$I$5,0) -> 272 | G105: =ROUND($I105*G$5/$I$5,0) -> 272 | H105: =ROUND($I105*H$5/$I$5,0) -> 272 | I105: =MAX(I104+I$5*0.01,I104*$J$4) -> 2723.497791
A106: 102 | B106: 102 | C106: =ROUND($I106*C$5/$I$5,0) -> 27509 | D106: =ROUND($I106*D$5/$I$5,0) -> 275 | E106: =ROUND($I106*E$5/$I$5,0) -> 2751 | F106: =ROUND($I106*F$5/$I$5,0) -> 275 | G106: =ROUND($I106*G$5/$I$5,0) -> 275 | H106: =ROUND($I106*H$5/$I$5,0) -> 275 | I106: =MAX(I105+I$5*0.01,I105*$J$4) -> 2750.922134
A107: 103 | B107: 103 | C107: =ROUND($I107*C$5/$I$5,0) -> 27786 | D107: =ROUND($I107*D$5/$I$5,0) -> 278 | E107: =ROUND($I107*E$5/$I$5,0) -> 2779 | F107: =ROUND($I107*F$5/$I$5,0) -> 278 | G107: =ROUND($I107*G$5/$I$5,0) -> 278 | H107: =ROUND($I107*H$5/$I$5,0) -> 278 | I107: =MAX(I106+I$5*0.01,I106*$J$4) -> 2778.622627
A108: 104 | B108: 104 | C108: =ROUND($I108*C$5/$I$5,0) -> 28066 | D108: =ROUND($I108*D$5/$I$5,0) -> 281 | E108: =ROUND($I108*E$5/$I$5,0) -> 2807 | F108: =ROUND($I108*F$5/$I$5,0) -> 281 | G108: =ROUND($I108*G$5/$I$5,0) -> 281 | H108: =ROUND($I108*H$5/$I$5,0) -> 281 | I108: =MAX(I107+I$5*0.01,I107*$J$4) -> 2806.602051
A109: 105 | B109: 105 | C109: =ROUND($I109*C$5/$I$5,0) -> 28349 | D109: =ROUND($I109*D$5/$I$5,0) -> 283 | E109: =ROUND($I109*E$5/$I$5,0) -> 2835 | F109: =ROUND($I109*F$5/$I$5,0) -> 283 | G109: =ROUND($I109*G$5/$I$5,0) -> 283 | H109: =ROUND($I109*H$5/$I$5,0) -> 283 | I109: =MAX(I108+I$5*0.01,I108*$J$4) -> 2834.863214
A110: 106 | B110: 106 | C110: =ROUND($I110*C$5/$I$5,0) -> 28634 | D110: =ROUND($I110*D$5/$I$5,0) -> 286 | E110: =ROUND($I110*E$5/$I$5,0) -> 2863 | F110: =ROUND($I110*F$5/$I$5,0) -> 286 | G110: =ROUND($I110*G$5/$I$5,0) -> 286 | H110: =ROUND($I110*H$5/$I$5,0) -> 286 | I110: =MAX(I109+I$5*0.01,I109*$J$4) -> 2863.408954
A111: 107 | B111: 107 | C111: =ROUND($I111*C$5/$I$5,0) -> 28922 | D111: =ROUND($I111*D$5/$I$5,0) -> 289 | E111: =ROUND($I111*E$5/$I$5,0) -> 2892 | F111: =ROUND($I111*F$5/$I$5,0) -> 289 | G111: =ROUND($I111*G$5/$I$5,0) -> 289 | H111: =ROUND($I111*H$5/$I$5,0) -> 289 | I111: =MAX(I110+I$5*0.01,I110*$J$4) -> 2892.242137
A112: 108 | B112: 108 | C112: =ROUND($I112*C$5/$I$5,0) -> 29214 | D112: =ROUND($I112*D$5/$I$5,0) -> 292 | E112: =ROUND($I112*E$5/$I$5,0) -> 2921 | F112: =ROUND($I112*F$5/$I$5,0) -> 292 | G112: =ROUND($I112*G$5/$I$5,0) -> 292 | H112: =ROUND($I112*H$5/$I$5,0) -> 292 | I112: =MAX(I111+I$5*0.01,I111*$J$4) -> 2921.365656
A113: 109 | B113: 109 | C113: =ROUND($I113*C$5/$I$5,0) -> 29508 | D113: =ROUND($I113*D$5/$I$5,0) -> 295 | E113: =ROUND($I113*E$5/$I$5,0) -> 2951 | F113: =ROUND($I113*F$5/$I$5,0) -> 295 | G113: =ROUND($I113*G$5/$I$5,0) -> 295 | H113: =ROUND($I113*H$5/$I$5,0) -> 295 | I113: =MAX(I112+I$5*0.01,I112*$J$4) -> 2950.782435
A114: 110 | B114: 110 | C114: =ROUND($I114*C$5/$I$5,0) -> 29805 | D114: =ROUND($I114*D$5/$I$5,0) -> 298 | E114: =ROUND($I114*E$5/$I$5,0) -> 2980 | F114: =ROUND($I114*F$5/$I$5,0) -> 298 | G114: =ROUND($I114*G$5/$I$5,0) -> 298 | H114: =ROUND($I114*H$5/$I$5,0) -> 298 | I114: =MAX(I113+I$5*0.01,I113*$J$4) -> 2980.495427
A115: 111 | B115: 111 | C115: =ROUND($I115*C$5/$I$5,0) -> 30105 | D115: =ROUND($I115*D$5/$I$5,0) -> 301 | E115: =ROUND($I115*E$5/$I$5,0) -> 3011 | F115: =ROUND($I115*F$5/$I$5,0) -> 301 | G115: =ROUND($I115*G$5/$I$5,0) -> 301 | H115: =ROUND($I115*H$5/$I$5,0) -> 301 | I115: =MAX(I114+I$5*0.01,I114*$J$4) -> 3010.507615
A116: 112 | B116: 112 | C116: =ROUND($I116*C$5/$I$5,0) -> 30408 | D116: =ROUND($I116*D$5/$I$5,0) -> 304 | E116: =ROUND($I116*E$5/$I$5,0) -> 3041 | F116: =ROUND($I116*F$5/$I$5,0) -> 304 | G116: =ROUND($I116*G$5/$I$5,0) -> 304 | H116: =ROUND($I116*H$5/$I$5,0) -> 304 | I116: =MAX(I115+I$5*0.01,I115*$J$4) -> 3040.822012
A117: 113 | B117: 113 | C117: =ROUND($I117*C$5/$I$5,0) -> 30714 | D117: =ROUND($I117*D$5/$I$5,0) -> 307 | E117: =ROUND($I117*E$5/$I$5,0) -> 3071 | F117: =ROUND($I117*F$5/$I$5,0) -> 307 | G117: =ROUND($I117*G$5/$I$5,0) -> 307 | H117: =ROUND($I117*H$5/$I$5,0) -> 307 | I117: =MAX(I116+I$5*0.01,I116*$J$4) -> 3071.44166
A118: 114 | B118: 114 | C118: =ROUND($I118*C$5/$I$5,0) -> 31024 | D118: =ROUND($I118*D$5/$I$5,0) -> 310 | E118: =ROUND($I118*E$5/$I$5,0) -> 3102 | F118: =ROUND($I118*F$5/$I$5,0) -> 310 | G118: =ROUND($I118*G$5/$I$5,0) -> 310 | H118: =ROUND($I118*H$5/$I$5,0) -> 310 | I118: =MAX(I117+I$5*0.01,I117*$J$4) -> 3102.369634
A119: 115 | B119: 115 | C119: =ROUND($I119*C$5/$I$5,0) -> 31336 | D119: =ROUND($I119*D$5/$I$5,0) -> 313 | E119: =ROUND($I119*E$5/$I$5,0) -> 3134 | F119: =ROUND($I119*F$5/$I$5,0) -> 313 | G119: =ROUND($I119*G$5/$I$5,0) -> 313 | H119: =ROUND($I119*H$5/$I$5,0) -> 313 | I119: =MAX(I118+I$5*0.01,I118*$J$4) -> 3133.609038
A120: 116 | B120: 116 | C120: =ROUND($I120*C$5/$I$5,0) -> 31652 | D120: =ROUND($I120*D$5/$I$5,0) -> 317 | E120: =ROUND($I120*E$5/$I$5,0) -> 3165 | F120: =ROUND($I120*F$5/$I$5,0) -> 317 | G120: =ROUND($I120*G$5/$I$5,0) -> 317 | H120: =ROUND($I120*H$5/$I$5,0) -> 317 | I120: =MAX(I119+I$5*0.01,I119*$J$4) -> 3165.163009
A121: 117 | B121: 117 | C121: =ROUND($I121*C$5/$I$5,0) -> 31970 | D121: =ROUND($I121*D$5/$I$5,0) -> 320 | E121: =ROUND($I121*E$5/$I$5,0) -> 3197 | F121: =ROUND($I121*F$5/$I$5,0) -> 320 | G121: =ROUND($I121*G$5/$I$5,0) -> 320 | H121: =ROUND($I121*H$5/$I$5,0) -> 320 | I121: =MAX(I120+I$5*0.01,I120*$J$4) -> 3197.034713
A122: 118 | B122: 118 | C122: =ROUND($I122*C$5/$I$5,0) -> 32292 | D122: =ROUND($I122*D$5/$I$5,0) -> 323 | E122: =ROUND($I122*E$5/$I$5,0) -> 3229 | F122: =ROUND($I122*F$5/$I$5,0) -> 323 | G122: =ROUND($I122*G$5/$I$5,0) -> 323 | H122: =ROUND($I122*H$5/$I$5,0) -> 323 | I122: =MAX(I121+I$5*0.01,I121*$J$4) -> 3229.22735
A123: 119 | B123: 119 | C123: =ROUND($I123*C$5/$I$5,0) -> 32617 | D123: =ROUND($I123*D$5/$I$5,0) -> 326 | E123: =ROUND($I123*E$5/$I$5,0) -> 3262 | F123: =ROUND($I123*F$5/$I$5,0) -> 326 | G123: =ROUND($I123*G$5/$I$5,0) -> 326 | H123: =ROUND($I123*H$5/$I$5,0) -> 326 | I123: =MAX(I122+I$5*0.01,I122*$J$4) -> 3261.744151
A124: 120 | B124: 120 | C124: =ROUND($I124*C$5/$I$5,0) -> 32946 | D124: =ROUND($I124*D$5/$I$5,0) -> 329 | E124: =ROUND($I124*E$5/$I$5,0) -> 3295 | F124: =ROUND($I124*F$5/$I$5,0) -> 329 | G124: =ROUND($I124*G$5/$I$5,0) -> 329 | H124: =ROUND($I124*H$5/$I$5,0) -> 329 | I124: =MAX(I123+I$5*0.01,I123*$J$4) -> 3294.588382
A125: 121 | B125: 121 | C125: =ROUND($I125*C$5/$I$5,0) -> 33278 | D125: =ROUND($I125*D$5/$I$5,0) -> 333 | E125: =ROUND($I125*E$5/$I$5,0) -> 3328 | F125: =ROUND($I125*F$5/$I$5,0) -> 333 | G125: =ROUND($I125*G$5/$I$5,0) -> 333 | H125: =ROUND($I125*H$5/$I$5,0) -> 333 | I125: =MAX(I124+I$5*0.01,I124*$J$4) -> 3327.763338
A126: 122 | B126: 122 | C126: =ROUND($I126*C$5/$I$5,0) -> 33613 | D126: =ROUND($I126*D$5/$I$5,0) -> 336 | E126: =ROUND($I126*E$5/$I$5,0) -> 3361 | F126: =ROUND($I126*F$5/$I$5,0) -> 336 | G126: =ROUND($I126*G$5/$I$5,0) -> 336 | H126: =ROUND($I126*H$5/$I$5,0) -> 336 | I126: =MAX(I125+I$5*0.01,I125*$J$4) -> 3361.272351
A127: 123 | B127: 123 | C127: =ROUND($I127*C$5/$I$5,0) -> 33951 | D127: =ROUND($I127*D$5/$I$5,0) -> 340 | E127: =ROUND($I127*E$5/$I$5,0) -> 3395 | F127: =ROUND($I127*F$5/$I$5,0) -> 340 | G127: =ROUND($I127*G$5/$I$5,0) -> 340 | H127: =ROUND($I127*H$5/$I$5,0) -> 340 | I127: =MAX(I126+I$5*0.01,I126*$J$4) -> 3395.118784
A128: 124 | B128: 124 | C128: =ROUND($I128*C$5/$I$5,0) -> 34293 | D128: =ROUND($I128*D$5/$I$5,0) -> 343 | E128: =ROUND($I128*E$5/$I$5,0) -> 3429 | F128: =ROUND($I128*F$5/$I$5,0) -> 343 | G128: =ROUND($I128*G$5/$I$5,0) -> 343 | H128: =ROUND($I128*H$5/$I$5,0) -> 343 | I128: =MAX(I127+I$5*0.01,I127*$J$4) -> 3429.306034
A129: 125 | B129: 125 | C129: =ROUND($I129*C$5/$I$5,0) -> 34638 | D129: =ROUND($I129*D$5/$I$5,0) -> 346 | E129: =ROUND($I129*E$5/$I$5,0) -> 3464 | F129: =ROUND($I129*F$5/$I$5,0) -> 346 | G129: =ROUND($I129*G$5/$I$5,0) -> 346 | H129: =ROUND($I129*H$5/$I$5,0) -> 346 | I129: =MAX(I128+I$5*0.01,I128*$J$4) -> 3463.837534
A130: 126 | B130: 126 | C130: =ROUND($I130*C$5/$I$5,0) -> 34987 | D130: =ROUND($I130*D$5/$I$5,0) -> 350 | E130: =ROUND($I130*E$5/$I$5,0) -> 3499 | F130: =ROUND($I130*F$5/$I$5,0) -> 350 | G130: =ROUND($I130*G$5/$I$5,0) -> 350 | H130: =ROUND($I130*H$5/$I$5,0) -> 350 | I130: =MAX(I129+I$5*0.01,I129*$J$4) -> 3498.71675
A131: 127 | B131: 127 | C131: =ROUND($I131*C$5/$I$5,0) -> 35339 | D131: =ROUND($I131*D$5/$I$5,0) -> 353 | E131: =ROUND($I131*E$5/$I$5,0) -> 3534 | F131: =ROUND($I131*F$5/$I$5,0) -> 353 | G131: =ROUND($I131*G$5/$I$5,0) -> 353 | H131: =ROUND($I131*H$5/$I$5,0) -> 353 | I131: =MAX(I130+I$5*0.01,I130*$J$4) -> 3533.947184
A132: 128 | B132: 128 | C132: =ROUND($I132*C$5/$I$5,0) -> 35695 | D132: =ROUND($I132*D$5/$I$5,0) -> 357 | E132: =ROUND($I132*E$5/$I$5,0) -> 3570 | F132: =ROUND($I132*F$5/$I$5,0) -> 357 | G132: =ROUND($I132*G$5/$I$5,0) -> 357 | H132: =ROUND($I132*H$5/$I$5,0) -> 357 | I132: =MAX(I131+I$5*0.01,I131*$J$4) -> 3569.532371
A133: 129 | B133: 129 | C133: =ROUND($I133*C$5/$I$5,0) -> 36055 | D133: =ROUND($I133*D$5/$I$5,0) -> 361 | E133: =ROUND($I133*E$5/$I$5,0) -> 3605 | F133: =ROUND($I133*F$5/$I$5,0) -> 361 | G133: =ROUND($I133*G$5/$I$5,0) -> 361 | H133: =ROUND($I133*H$5/$I$5,0) -> 361 | I133: =MAX(I132+I$5*0.01,I132*$J$4) -> 3605.475884
A134: 130 | B134: 130 | C134: =ROUND($I134*C$5/$I$5,0) -> 36418 | D134: =ROUND($I134*D$5/$I$5,0) -> 364 | E134: =ROUND($I134*E$5/$I$5,0) -> 3642 | F134: =ROUND($I134*F$5/$I$5,0) -> 364 | G134: =ROUND($I134*G$5/$I$5,0) -> 364 | H134: =ROUND($I134*H$5/$I$5,0) -> 364 | I134: =MAX(I133+I$5*0.01,I133*$J$4) -> 3641.781332
A135: 131 | B135: 131 | C135: =ROUND($I135*C$5/$I$5,0) -> 36785 | D135: =ROUND($I135*D$5/$I$5,0) -> 368 | E135: =ROUND($I135*E$5/$I$5,0) -> 3678 | F135: =ROUND($I135*F$5/$I$5,0) -> 368 | G135: =ROUND($I135*G$5/$I$5,0) -> 368 | H135: =ROUND($I135*H$5/$I$5,0) -> 368 | I135: =MAX(I134+I$5*0.01,I134*$J$4) -> 3678.452358
A136: 132 | B136: 132 | C136: =ROUND($I136*C$5/$I$5,0) -> 37155 | D136: =ROUND($I136*D$5/$I$5,0) -> 372 | E136: =ROUND($I136*E$5/$I$5,0) -> 3715 | F136: =ROUND($I136*F$5/$I$5,0) -> 372 | G136: =ROUND($I136*G$5/$I$5,0) -> 372 | H136: =ROUND($I136*H$5/$I$5,0) -> 372 | I136: =MAX(I135+I$5*0.01,I135*$J$4) -> 3715.492644
A137: 133 | B137: 133 | C137: =ROUND($I137*C$5/$I$5,0) -> 37529 | D137: =ROUND($I137*D$5/$I$5,0) -> 375 | E137: =ROUND($I137*E$5/$I$5,0) -> 3753 | F137: =ROUND($I137*F$5/$I$5,0) -> 375 | G137: =ROUND($I137*G$5/$I$5,0) -> 375 | H137: =ROUND($I137*H$5/$I$5,0) -> 375 | I137: =MAX(I136+I$5*0.01,I136*$J$4) -> 3752.905909
A138: 134 | B138: 134 | C138: =ROUND($I138*C$5/$I$5,0) -> 37907 | D138: =ROUND($I138*D$5/$I$5,0) -> 379 | E138: =ROUND($I138*E$5/$I$5,0) -> 3791 | F138: =ROUND($I138*F$5/$I$5,0) -> 379 | G138: =ROUND($I138*G$5/$I$5,0) -> 379 | H138: =ROUND($I138*H$5/$I$5,0) -> 379 | I138: =MAX(I137+I$5*0.01,I137*$J$4) -> 3790.695908
A139: 135 | B139: 135 | C139: =ROUND($I139*C$5/$I$5,0) -> 38289 | D139: =ROUND($I139*D$5/$I$5,0) -> 383 | E139: =ROUND($I139*E$5/$I$5,0) -> 3829 | F139: =ROUND($I139*F$5/$I$5,0) -> 383 | G139: =ROUND($I139*G$5/$I$5,0) -> 383 | H139: =ROUND($I139*H$5/$I$5,0) -> 383 | I139: =MAX(I138+I$5*0.01,I138*$J$4) -> 3828.866434
A140: 136 | B140: 136 | C140: =ROUND($I140*C$5/$I$5,0) -> 38674 | D140: =ROUND($I140*D$5/$I$5,0) -> 387 | E140: =ROUND($I140*E$5/$I$5,0) -> 3867 | F140: =ROUND($I140*F$5/$I$5,0) -> 387 | G140: =ROUND($I140*G$5/$I$5,0) -> 387 | H140: =ROUND($I140*H$5/$I$5,0) -> 387 | I140: =MAX(I139+I$5*0.01,I139*$J$4) -> 3867.421319
A141: 137 | B141: 137 | C141: =ROUND($I141*C$5/$I$5,0) -> 39064 | D141: =ROUND($I141*D$5/$I$5,0) -> 391 | E141: =ROUND($I141*E$5/$I$5,0) -> 3906 | F141: =ROUND($I141*F$5/$I$5,0) -> 391 | G141: =ROUND($I141*G$5/$I$5,0) -> 391 | H141: =ROUND($I141*H$5/$I$5,0) -> 391 | I141: =MAX(I140+I$5*0.01,I140*$J$4) -> 3906.364434
A142: 138 | B142: 138 | C142: =ROUND($I142*C$5/$I$5,0) -> 39457 | D142: =ROUND($I142*D$5/$I$5,0) -> 395 | E142: =ROUND($I142*E$5/$I$5,0) -> 3946 | F142: =ROUND($I142*F$5/$I$5,0) -> 395 | G142: =ROUND($I142*G$5/$I$5,0) -> 395 | H142: =ROUND($I142*H$5/$I$5,0) -> 395 | I142: =MAX(I141+I$5*0.01,I141*$J$4) -> 3945.699688
A143: 139 | B143: 139 | C143: =ROUND($I143*C$5/$I$5,0) -> 39854 | D143: =ROUND($I143*D$5/$I$5,0) -> 399 | E143: =ROUND($I143*E$5/$I$5,0) -> 3985 | F143: =ROUND($I143*F$5/$I$5,0) -> 399 | G143: =ROUND($I143*G$5/$I$5,0) -> 399 | H143: =ROUND($I143*H$5/$I$5,0) -> 399 | I143: =MAX(I142+I$5*0.01,I142*$J$4) -> 3985.431029
A144: 140 | B144: 140 | C144: =ROUND($I144*C$5/$I$5,0) -> 40256 | D144: =ROUND($I144*D$5/$I$5,0) -> 403 | E144: =ROUND($I144*E$5/$I$5,0) -> 4026 | F144: =ROUND($I144*F$5/$I$5,0) -> 403 | G144: =ROUND($I144*G$5/$I$5,0) -> 403 | H144: =ROUND($I144*H$5/$I$5,0) -> 403 | I144: =MAX(I143+I$5*0.01,I143*$J$4) -> 4025.562447
A145: 141 | B145: 141 | C145: =ROUND($I145*C$5/$I$5,0) -> 40661 | D145: =ROUND($I145*D$5/$I$5,0) -> 407 | E145: =ROUND($I145*E$5/$I$5,0) -> 4066 | F145: =ROUND($I145*F$5/$I$5,0) -> 407 | G145: =ROUND($I145*G$5/$I$5,0) -> 407 | H145: =ROUND($I145*H$5/$I$5,0) -> 407 | I145: =MAX(I144+I$5*0.01,I144*$J$4) -> 4066.097969
A146: 142 | B146: 142 | C146: =ROUND($I146*C$5/$I$5,0) -> 41070 | D146: =ROUND($I146*D$5/$I$5,0) -> 411 | E146: =ROUND($I146*E$5/$I$5,0) -> 4107 | F146: =ROUND($I146*F$5/$I$5,0) -> 411 | G146: =ROUND($I146*G$5/$I$5,0) -> 411 | H146: =ROUND($I146*H$5/$I$5,0) -> 411 | I146: =MAX(I145+I$5*0.01,I145*$J$4) -> 4107.041664
A147: 143 | B147: 143 | C147: =ROUND($I147*C$5/$I$5,0) -> 41484 | D147: =ROUND($I147*D$5/$I$5,0) -> 415 | E147: =ROUND($I147*E$5/$I$5,0) -> 4148 | F147: =ROUND($I147*F$5/$I$5,0) -> 415 | G147: =ROUND($I147*G$5/$I$5,0) -> 415 | H147: =ROUND($I147*H$5/$I$5,0) -> 415 | I147: =MAX(I146+I$5*0.01,I146*$J$4) -> 4148.397643
A148: 144 | B148: 144 | C148: =ROUND($I148*C$5/$I$5,0) -> 41902 | D148: =ROUND($I148*D$5/$I$5,0) -> 419 | E148: =ROUND($I148*E$5/$I$5,0) -> 4190 | F148: =ROUND($I148*F$5/$I$5,0) -> 419 | G148: =ROUND($I148*G$5/$I$5,0) -> 419 | H148: =ROUND($I148*H$5/$I$5,0) -> 419 | I148: =MAX(I147+I$5*0.01,I147*$J$4) -> 4190.170058
A149: 145 | B149: 145 | C149: =ROUND($I149*C$5/$I$5,0) -> 42324 | D149: =ROUND($I149*D$5/$I$5,0) -> 423 | E149: =ROUND($I149*E$5/$I$5,0) -> 4232 | F149: =ROUND($I149*F$5/$I$5,0) -> 423 | G149: =ROUND($I149*G$5/$I$5,0) -> 423 | H149: =ROUND($I149*H$5/$I$5,0) -> 423 | I149: =MAX(I148+I$5*0.01,I148*$J$4) -> 4232.363101
A150: 146 | B150: 146 | C150: =ROUND($I150*C$5/$I$5,0) -> 42750 | D150: =ROUND($I150*D$5/$I$5,0) -> 427 | E150: =ROUND($I150*E$5/$I$5,0) -> 4275 | F150: =ROUND($I150*F$5/$I$5,0) -> 427 | G150: =ROUND($I150*G$5/$I$5,0) -> 427 | H150: =ROUND($I150*H$5/$I$5,0) -> 427 | I150: =MAX(I149+I$5*0.01,I149*$J$4) -> 4274.981008
A151: 147 | B151: 147 | C151: =ROUND($I151*C$5/$I$5,0) -> 43180 | D151: =ROUND($I151*D$5/$I$5,0) -> 432 | E151: =ROUND($I151*E$5/$I$5,0) -> 4318 | F151: =ROUND($I151*F$5/$I$5,0) -> 432 | G151: =ROUND($I151*G$5/$I$5,0) -> 432 | H151: =ROUND($I151*H$5/$I$5,0) -> 432 | I151: =MAX(I150+I$5*0.01,I150*$J$4) -> 4318.028058
A152: 148 | B152: 148 | C152: =ROUND($I152*C$5/$I$5,0) -> 43615 | D152: =ROUND($I152*D$5/$I$5,0) -> 436 | E152: =ROUND($I152*E$5/$I$5,0) -> 4362 | F152: =ROUND($I152*F$5/$I$5,0) -> 436 | G152: =ROUND($I152*G$5/$I$5,0) -> 436 | H152: =ROUND($I152*H$5/$I$5,0) -> 436 | I152: =MAX(I151+I$5*0.01,I151*$J$4) -> 4361.508571
A153: 149 | B153: 149 | C153: =ROUND($I153*C$5/$I$5,0) -> 44054 | D153: =ROUND($I153*D$5/$I$5,0) -> 441 | E153: =ROUND($I153*E$5/$I$5,0) -> 4405 | F153: =ROUND($I153*F$5/$I$5,0) -> 441 | G153: =ROUND($I153*G$5/$I$5,0) -> 441 | H153: =ROUND($I153*H$5/$I$5,0) -> 441 | I153: =MAX(I152+I$5*0.01,I152*$J$4) -> 4405.426912
A154: 150 | B154: 150 | C154: =ROUND($I154*C$5/$I$5,0) -> 44498 | D154: =ROUND($I154*D$5/$I$5,0) -> 445 | E154: =ROUND($I154*E$5/$I$5,0) -> 4450 | F154: =ROUND($I154*F$5/$I$5,0) -> 445 | G154: =ROUND($I154*G$5/$I$5,0) -> 445 | H154: =ROUND($I154*H$5/$I$5,0) -> 445 | I154: =MAX(I153+I$5*0.01,I153*$J$4) -> 4449.787491
A155: 151 | B155: 151 | C155: =ROUND($I155*C$5/$I$5,0) -> 44946 | D155: =ROUND($I155*D$5/$I$5,0) -> 449 | E155: =ROUND($I155*E$5/$I$5,0) -> 4495 | F155: =ROUND($I155*F$5/$I$5,0) -> 449 | G155: =ROUND($I155*G$5/$I$5,0) -> 449 | H155: =ROUND($I155*H$5/$I$5,0) -> 449 | I155: =MAX(I154+I$5*0.01,I154*$J$4) -> 4494.594759
A156: 152 | B156: 152 | C156: =ROUND($I156*C$5/$I$5,0) -> 45399 | D156: =ROUND($I156*D$5/$I$5,0) -> 454 | E156: =ROUND($I156*E$5/$I$5,0) -> 4540 | F156: =ROUND($I156*F$5/$I$5,0) -> 454 | G156: =ROUND($I156*G$5/$I$5,0) -> 454 | H156: =ROUND($I156*H$5/$I$5,0) -> 454 | I156: =MAX(I155+I$5*0.01,I155*$J$4) -> 4539.853216
A157: 153 | B157: 153 | C157: =ROUND($I157*C$5/$I$5,0) -> 45856 | D157: =ROUND($I157*D$5/$I$5,0) -> 459 | E157: =ROUND($I157*E$5/$I$5,0) -> 4586 | F157: =ROUND($I157*F$5/$I$5,0) -> 459 | G157: =ROUND($I157*G$5/$I$5,0) -> 459 | H157: =ROUND($I157*H$5/$I$5,0) -> 459 | I157: =MAX(I156+I$5*0.01,I156*$J$4) -> 4585.567404
A158: 154 | B158: 154 | C158: =ROUND($I158*C$5/$I$5,0) -> 46317 | D158: =ROUND($I158*D$5/$I$5,0) -> 463 | E158: =ROUND($I158*E$5/$I$5,0) -> 4632 | F158: =ROUND($I158*F$5/$I$5,0) -> 463 | G158: =ROUND($I158*G$5/$I$5,0) -> 463 | H158: =ROUND($I158*H$5/$I$5,0) -> 463 | I158: =MAX(I157+I$5*0.01,I157*$J$4) -> 4631.741913
A159: 155 | B159: 155 | C159: =ROUND($I159*C$5/$I$5,0) -> 46784 | D159: =ROUND($I159*D$5/$I$5,0) -> 468 | E159: =ROUND($I159*E$5/$I$5,0) -> 4678 | F159: =ROUND($I159*F$5/$I$5,0) -> 468 | G159: =ROUND($I159*G$5/$I$5,0) -> 468 | H159: =ROUND($I159*H$5/$I$5,0) -> 468 | I159: =MAX(I158+I$5*0.01,I158*$J$4) -> 4678.381377
A160: 156 | B160: 156 | C160: =ROUND($I160*C$5/$I$5,0) -> 47255 | D160: =ROUND($I160*D$5/$I$5,0) -> 473 | E160: =ROUND($I160*E$5/$I$5,0) -> 4725 | F160: =ROUND($I160*F$5/$I$5,0) -> 473 | G160: =ROUND($I160*G$5/$I$5,0) -> 473 | H160: =ROUND($I160*H$5/$I$5,0) -> 473 | I160: =MAX(I159+I$5*0.01,I159*$J$4) -> 4725.490478
A161: 157 | B161: 157 | C161: =ROUND($I161*C$5/$I$5,0) -> 47731 | D161: =ROUND($I161*D$5/$I$5,0) -> 477 | E161: =ROUND($I161*E$5/$I$5,0) -> 4773 | F161: =ROUND($I161*F$5/$I$5,0) -> 477 | G161: =ROUND($I161*G$5/$I$5,0) -> 477 | H161: =ROUND($I161*H$5/$I$5,0) -> 477 | I161: =MAX(I160+I$5*0.01,I160*$J$4) -> 4773.073947
A162: 158 | B162: 158 | C162: =ROUND($I162*C$5/$I$5,0) -> 48211 | D162: =ROUND($I162*D$5/$I$5,0) -> 482 | E162: =ROUND($I162*E$5/$I$5,0) -> 4821 | F162: =ROUND($I162*F$5/$I$5,0) -> 482 | G162: =ROUND($I162*G$5/$I$5,0) -> 482 | H162: =ROUND($I162*H$5/$I$5,0) -> 482 | I162: =MAX(I161+I$5*0.01,I161*$J$4) -> 4821.136558
A163: 159 | B163: 159 | C163: =ROUND($I163*C$5/$I$5,0) -> 48697 | D163: =ROUND($I163*D$5/$I$5,0) -> 487 | E163: =ROUND($I163*E$5/$I$5,0) -> 4870 | F163: =ROUND($I163*F$5/$I$5,0) -> 487 | G163: =ROUND($I163*G$5/$I$5,0) -> 487 | H163: =ROUND($I163*H$5/$I$5,0) -> 487 | I163: =MAX(I162+I$5*0.01,I162*$J$4) -> 4869.683137
A164: 160 | B164: 160 | C164: =ROUND($I164*C$5/$I$5,0) -> 49187 | D164: =ROUND($I164*D$5/$I$5,0) -> 492 | E164: =ROUND($I164*E$5/$I$5,0) -> 4919 | F164: =ROUND($I164*F$5/$I$5,0) -> 492 | G164: =ROUND($I164*G$5/$I$5,0) -> 492 | H164: =ROUND($I164*H$5/$I$5,0) -> 492 | I164: =MAX(I163+I$5*0.01,I163*$J$4) -> 4918.718558
A165: 161 | B165: 161 | C165: =ROUND($I165*C$5/$I$5,0) -> 49682 | D165: =ROUND($I165*D$5/$I$5,0) -> 497 | E165: =ROUND($I165*E$5/$I$5,0) -> 4968 | F165: =ROUND($I165*F$5/$I$5,0) -> 497 | G165: =ROUND($I165*G$5/$I$5,0) -> 497 | H165: =ROUND($I165*H$5/$I$5,0) -> 497 | I165: =MAX(I164+I$5*0.01,I164*$J$4) -> 4968.247742
A166: 162 | B166: 162 | C166: =ROUND($I166*C$5/$I$5,0) -> 50183 | D166: =ROUND($I166*D$5/$I$5,0) -> 502 | E166: =ROUND($I166*E$5/$I$5,0) -> 5018 | F166: =ROUND($I166*F$5/$I$5,0) -> 502 | G166: =ROUND($I166*G$5/$I$5,0) -> 502 | H166: =ROUND($I166*H$5/$I$5,0) -> 502 | I166: =MAX(I165+I$5*0.01,I165*$J$4) -> 5018.275661
A167: 163 | B167: 163 | C167: =ROUND($I167*C$5/$I$5,0) -> 50688 | D167: =ROUND($I167*D$5/$I$5,0) -> 507 | E167: =ROUND($I167*E$5/$I$5,0) -> 5069 | F167: =ROUND($I167*F$5/$I$5,0) -> 507 | G167: =ROUND($I167*G$5/$I$5,0) -> 507 | H167: =ROUND($I167*H$5/$I$5,0) -> 507 | I167: =MAX(I166+I$5*0.01,I166*$J$4) -> 5068.807339
A168: 164 | B168: 164 | C168: =ROUND($I168*C$5/$I$5,0) -> 51198 | D168: =ROUND($I168*D$5/$I$5,0) -> 512 | E168: =ROUND($I168*E$5/$I$5,0) -> 5120 | F168: =ROUND($I168*F$5/$I$5,0) -> 512 | G168: =ROUND($I168*G$5/$I$5,0) -> 512 | H168: =ROUND($I168*H$5/$I$5,0) -> 512 | I168: =MAX(I167+I$5*0.01,I167*$J$4) -> 5119.847846
A169: 165 | B169: 165 | C169: =ROUND($I169*C$5/$I$5,0) -> 51714 | D169: =ROUND($I169*D$5/$I$5,0) -> 517 | E169: =ROUND($I169*E$5/$I$5,0) -> 5171 | F169: =ROUND($I169*F$5/$I$5,0) -> 517 | G169: =ROUND($I169*G$5/$I$5,0) -> 517 | H169: =ROUND($I169*H$5/$I$5,0) -> 517 | I169: =MAX(I168+I$5*0.01,I168*$J$4) -> 5171.402308
A170: 166 | B170: 166 | C170: =ROUND($I170*C$5/$I$5,0) -> 52235 | D170: =ROUND($I170*D$5/$I$5,0) -> 522 | E170: =ROUND($I170*E$5/$I$5,0) -> 5223 | F170: =ROUND($I170*F$5/$I$5,0) -> 522 | G170: =ROUND($I170*G$5/$I$5,0) -> 522 | H170: =ROUND($I170*H$5/$I$5,0) -> 522 | I170: =MAX(I169+I$5*0.01,I169*$J$4) -> 5223.475898
A171: 167 | B171: 167 | C171: =ROUND($I171*C$5/$I$5,0) -> 52761 | D171: =ROUND($I171*D$5/$I$5,0) -> 528 | E171: =ROUND($I171*E$5/$I$5,0) -> 5276 | F171: =ROUND($I171*F$5/$I$5,0) -> 528 | G171: =ROUND($I171*G$5/$I$5,0) -> 528 | H171: =ROUND($I171*H$5/$I$5,0) -> 528 | I171: =MAX(I170+I$5*0.01,I170*$J$4) -> 5276.073846
A172: 168 | B172: 168 | C172: =ROUND($I172*C$5/$I$5,0) -> 53292 | D172: =ROUND($I172*D$5/$I$5,0) -> 533 | E172: =ROUND($I172*E$5/$I$5,0) -> 5329 | F172: =ROUND($I172*F$5/$I$5,0) -> 533 | G172: =ROUND($I172*G$5/$I$5,0) -> 533 | H172: =ROUND($I172*H$5/$I$5,0) -> 533 | I172: =MAX(I171+I$5*0.01,I171*$J$4) -> 5329.201429
A173: 169 | B173: 169 | C173: =ROUND($I173*C$5/$I$5,0) -> 53829 | D173: =ROUND($I173*D$5/$I$5,0) -> 538 | E173: =ROUND($I173*E$5/$I$5,0) -> 5383 | F173: =ROUND($I173*F$5/$I$5,0) -> 538 | G173: =ROUND($I173*G$5/$I$5,0) -> 538 | H173: =ROUND($I173*H$5/$I$5,0) -> 538 | I173: =MAX(I172+I$5*0.01,I172*$J$4) -> 5382.863983
A174: 170 | B174: 170 | C174: =ROUND($I174*C$5/$I$5,0) -> 54371 | D174: =ROUND($I174*D$5/$I$5,0) -> 544 | E174: =ROUND($I174*E$5/$I$5,0) -> 5437 | F174: =ROUND($I174*F$5/$I$5,0) -> 544 | G174: =ROUND($I174*G$5/$I$5,0) -> 544 | H174: =ROUND($I174*H$5/$I$5,0) -> 544 | I174: =MAX(I173+I$5*0.01,I173*$J$4) -> 5437.066893
A175: 171 | B175: 171 | C175: =ROUND($I175*C$5/$I$5,0) -> 54918 | D175: =ROUND($I175*D$5/$I$5,0) -> 549 | E175: =ROUND($I175*E$5/$I$5,0) -> 5492 | F175: =ROUND($I175*F$5/$I$5,0) -> 549 | G175: =ROUND($I175*G$5/$I$5,0) -> 549 | H175: =ROUND($I175*H$5/$I$5,0) -> 549 | I175: =MAX(I174+I$5*0.01,I174*$J$4) -> 5491.815602
A176: 172 | B176: 172 | C176: =ROUND($I176*C$5/$I$5,0) -> 55471 | D176: =ROUND($I176*D$5/$I$5,0) -> 555 | E176: =ROUND($I176*E$5/$I$5,0) -> 5547 | F176: =ROUND($I176*F$5/$I$5,0) -> 555 | G176: =ROUND($I176*G$5/$I$5,0) -> 555 | H176: =ROUND($I176*H$5/$I$5,0) -> 555 | I176: =MAX(I175+I$5*0.01,I175*$J$4) -> 5547.115604
A177: 173 | B177: 173 | C177: =ROUND($I177*C$5/$I$5,0) -> 56030 | D177: =ROUND($I177*D$5/$I$5,0) -> 560 | E177: =ROUND($I177*E$5/$I$5,0) -> 5603 | F177: =ROUND($I177*F$5/$I$5,0) -> 560 | G177: =ROUND($I177*G$5/$I$5,0) -> 560 | H177: =ROUND($I177*H$5/$I$5,0) -> 560 | I177: =MAX(I176+I$5*0.01,I176*$J$4) -> 5602.972451
A178: 174 | B178: 174 | C178: =ROUND($I178*C$5/$I$5,0) -> 56594 | D178: =ROUND($I178*D$5/$I$5,0) -> 566 | E178: =ROUND($I178*E$5/$I$5,0) -> 5659 | F178: =ROUND($I178*F$5/$I$5,0) -> 566 | G178: =ROUND($I178*G$5/$I$5,0) -> 566 | H178: =ROUND($I178*H$5/$I$5,0) -> 566 | I178: =MAX(I177+I$5*0.01,I177*$J$4) -> 5659.39175
A179: 175 | B179: 175 | C179: =ROUND($I179*C$5/$I$5,0) -> 57164 | D179: =ROUND($I179*D$5/$I$5,0) -> 572 | E179: =ROUND($I179*E$5/$I$5,0) -> 5716 | F179: =ROUND($I179*F$5/$I$5,0) -> 572 | G179: =ROUND($I179*G$5/$I$5,0) -> 572 | H179: =ROUND($I179*H$5/$I$5,0) -> 572 | I179: =MAX(I178+I$5*0.01,I178*$J$4) -> 5716.379165
A180: 176 | B180: 176 | C180: =ROUND($I180*C$5/$I$5,0) -> 57739 | D180: =ROUND($I180*D$5/$I$5,0) -> 577 | E180: =ROUND($I180*E$5/$I$5,0) -> 5774 | F180: =ROUND($I180*F$5/$I$5,0) -> 577 | G180: =ROUND($I180*G$5/$I$5,0) -> 577 | H180: =ROUND($I180*H$5/$I$5,0) -> 577 | I180: =MAX(I179+I$5*0.01,I179*$J$4) -> 5773.940416
A181: 177 | B181: 177 | C181: =ROUND($I181*C$5/$I$5,0) -> 58321 | D181: =ROUND($I181*D$5/$I$5,0) -> 583 | E181: =ROUND($I181*E$5/$I$5,0) -> 5832 | F181: =ROUND($I181*F$5/$I$5,0) -> 583 | G181: =ROUND($I181*G$5/$I$5,0) -> 583 | H181: =ROUND($I181*H$5/$I$5,0) -> 583 | I181: =MAX(I180+I$5*0.01,I180*$J$4) -> 5832.081283
A182: 178 | B182: 178 | C182: =ROUND($I182*C$5/$I$5,0) -> 58908 | D182: =ROUND($I182*D$5/$I$5,0) -> 589 | E182: =ROUND($I182*E$5/$I$5,0) -> 5891 | F182: =ROUND($I182*F$5/$I$5,0) -> 589 | G182: =ROUND($I182*G$5/$I$5,0) -> 589 | H182: =ROUND($I182*H$5/$I$5,0) -> 589 | I182: =MAX(I181+I$5*0.01,I181*$J$4) -> 5890.8076
A183: 179 | B183: 179 | C183: =ROUND($I183*C$5/$I$5,0) -> 59501 | D183: =ROUND($I183*D$5/$I$5,0) -> 595 | E183: =ROUND($I183*E$5/$I$5,0) -> 5950 | F183: =ROUND($I183*F$5/$I$5,0) -> 595 | G183: =ROUND($I183*G$5/$I$5,0) -> 595 | H183: =ROUND($I183*H$5/$I$5,0) -> 595 | I183: =MAX(I182+I$5*0.01,I182*$J$4) -> 5950.125264
A184: 180 | B184: 180 | C184: =ROUND($I184*C$5/$I$5,0) -> 60100 | D184: =ROUND($I184*D$5/$I$5,0) -> 601 | E184: =ROUND($I184*E$5/$I$5,0) -> 6010 | F184: =ROUND($I184*F$5/$I$5,0) -> 601 | G184: =ROUND($I184*G$5/$I$5,0) -> 601 | H184: =ROUND($I184*H$5/$I$5,0) -> 601 | I184: =MAX(I183+I$5*0.01,I183*$J$4) -> 6010.040229
A185: 181 | B185: 181 | C185: =ROUND($I185*C$5/$I$5,0) -> 60706 | D185: =ROUND($I185*D$5/$I$5,0) -> 607 | E185: =ROUND($I185*E$5/$I$5,0) -> 6071 | F185: =ROUND($I185*F$5/$I$5,0) -> 607 | G185: =ROUND($I185*G$5/$I$5,0) -> 607 | H185: =ROUND($I185*H$5/$I$5,0) -> 607 | I185: =MAX(I184+I$5*0.01,I184*$J$4) -> 6070.558509
A186: 182 | B186: 182 | C186: =ROUND($I186*C$5/$I$5,0) -> 61317 | D186: =ROUND($I186*D$5/$I$5,0) -> 613 | E186: =ROUND($I186*E$5/$I$5,0) -> 6132 | F186: =ROUND($I186*F$5/$I$5,0) -> 613 | G186: =ROUND($I186*G$5/$I$5,0) -> 613 | H186: =ROUND($I186*H$5/$I$5,0) -> 613 | I186: =MAX(I185+I$5*0.01,I185*$J$4) -> 6131.68618
A187: 183 | B187: 183 | C187: =ROUND($I187*C$5/$I$5,0) -> 61934 | D187: =ROUND($I187*D$5/$I$5,0) -> 619 | E187: =ROUND($I187*E$5/$I$5,0) -> 6193 | F187: =ROUND($I187*F$5/$I$5,0) -> 619 | G187: =ROUND($I187*G$5/$I$5,0) -> 619 | H187: =ROUND($I187*H$5/$I$5,0) -> 619 | I187: =MAX(I186+I$5*0.01,I186*$J$4) -> 6193.429378
A188: 184 | B188: 184 | C188: =ROUND($I188*C$5/$I$5,0) -> 62558 | D188: =ROUND($I188*D$5/$I$5,0) -> 626 | E188: =ROUND($I188*E$5/$I$5,0) -> 6256 | F188: =ROUND($I188*F$5/$I$5,0) -> 626 | G188: =ROUND($I188*G$5/$I$5,0) -> 626 | H188: =ROUND($I188*H$5/$I$5,0) -> 626 | I188: =MAX(I187+I$5*0.01,I187*$J$4) -> 6255.794301
A189: 185 | B189: 185 | C189: =ROUND($I189*C$5/$I$5,0) -> 63188 | D189: =ROUND($I189*D$5/$I$5,0) -> 632 | E189: =ROUND($I189*E$5/$I$5,0) -> 6319 | F189: =ROUND($I189*F$5/$I$5,0) -> 632 | G189: =ROUND($I189*G$5/$I$5,0) -> 632 | H189: =ROUND($I189*H$5/$I$5,0) -> 632 | I189: =MAX(I188+I$5*0.01,I188*$J$4) -> 6318.787209
A190: 186 | B190: 186 | C190: =ROUND($I190*C$5/$I$5,0) -> 63824 | D190: =ROUND($I190*D$5/$I$5,0) -> 638 | E190: =ROUND($I190*E$5/$I$5,0) -> 6382 | F190: =ROUND($I190*F$5/$I$5,0) -> 638 | G190: =ROUND($I190*G$5/$I$5,0) -> 638 | H190: =ROUND($I190*H$5/$I$5,0) -> 638 | I190: =MAX(I189+I$5*0.01,I189*$J$4) -> 6382.414427
A191: 187 | B191: 187 | C191: =ROUND($I191*C$5/$I$5,0) -> 64467 | D191: =ROUND($I191*D$5/$I$5,0) -> 645 | E191: =ROUND($I191*E$5/$I$5,0) -> 6447 | F191: =ROUND($I191*F$5/$I$5,0) -> 645 | G191: =ROUND($I191*G$5/$I$5,0) -> 645 | H191: =ROUND($I191*H$5/$I$5,0) -> 645 | I191: =MAX(I190+I$5*0.01,I190*$J$4) -> 6446.68234
A192: 188 | B192: 188 | C192: =ROUND($I192*C$5/$I$5,0) -> 65116 | D192: =ROUND($I192*D$5/$I$5,0) -> 651 | E192: =ROUND($I192*E$5/$I$5,0) -> 6512 | F192: =ROUND($I192*F$5/$I$5,0) -> 651 | G192: =ROUND($I192*G$5/$I$5,0) -> 651 | H192: =ROUND($I192*H$5/$I$5,0) -> 651 | I192: =MAX(I191+I$5*0.01,I191*$J$4) -> 6511.597401
A193: 189 | B193: 189 | C193: =ROUND($I193*C$5/$I$5,0) -> 65772 | D193: =ROUND($I193*D$5/$I$5,0) -> 658 | E193: =ROUND($I193*E$5/$I$5,0) -> 6577 | F193: =ROUND($I193*F$5/$I$5,0) -> 658 | G193: =ROUND($I193*G$5/$I$5,0) -> 658 | H193: =ROUND($I193*H$5/$I$5,0) -> 658 | I193: =MAX(I192+I$5*0.01,I192*$J$4) -> 6577.166127
A194: 190 | B194: 190 | C194: =ROUND($I194*C$5/$I$5,0) -> 66434 | D194: =ROUND($I194*D$5/$I$5,0) -> 664 | E194: =ROUND($I194*E$5/$I$5,0) -> 6643 | F194: =ROUND($I194*F$5/$I$5,0) -> 664 | G194: =ROUND($I194*G$5/$I$5,0) -> 664 | H194: =ROUND($I194*H$5/$I$5,0) -> 664 | I194: =MAX(I193+I$5*0.01,I193*$J$4) -> 6643.395098
A195: 191 | B195: 191 | C195: =ROUND($I195*C$5/$I$5,0) -> 67103 | D195: =ROUND($I195*D$5/$I$5,0) -> 671 | E195: =ROUND($I195*E$5/$I$5,0) -> 6710 | F195: =ROUND($I195*F$5/$I$5,0) -> 671 | G195: =ROUND($I195*G$5/$I$5,0) -> 671 | H195: =ROUND($I195*H$5/$I$5,0) -> 671 | I195: =MAX(I194+I$5*0.01,I194*$J$4) -> 6710.290965
A196: 192 | B196: 192 | C196: =ROUND($I196*C$5/$I$5,0) -> 67779 | D196: =ROUND($I196*D$5/$I$5,0) -> 678 | E196: =ROUND($I196*E$5/$I$5,0) -> 6778 | F196: =ROUND($I196*F$5/$I$5,0) -> 678 | G196: =ROUND($I196*G$5/$I$5,0) -> 678 | H196: =ROUND($I196*H$5/$I$5,0) -> 678 | I196: =MAX(I195+I$5*0.01,I195*$J$4) -> 6777.860441
A197: 193 | B197: 193 | C197: =ROUND($I197*C$5/$I$5,0) -> 68461 | D197: =ROUND($I197*D$5/$I$5,0) -> 685 | E197: =ROUND($I197*E$5/$I$5,0) -> 6846 | F197: =ROUND($I197*F$5/$I$5,0) -> 685 | G197: =ROUND($I197*G$5/$I$5,0) -> 685 | H197: =ROUND($I197*H$5/$I$5,0) -> 685 | I197: =MAX(I196+I$5*0.01,I196*$J$4) -> 6846.11031
A198: 194 | B198: 194 | C198: =ROUND($I198*C$5/$I$5,0) -> 69150 | D198: =ROUND($I198*D$5/$I$5,0) -> 692 | E198: =ROUND($I198*E$5/$I$5,0) -> 6915 | F198: =ROUND($I198*F$5/$I$5,0) -> 692 | G198: =ROUND($I198*G$5/$I$5,0) -> 692 | H198: =ROUND($I198*H$5/$I$5,0) -> 692 | I198: =MAX(I197+I$5*0.01,I197*$J$4) -> 6915.047423
A199: 195 | B199: 195 | C199: =ROUND($I199*C$5/$I$5,0) -> 69847 | D199: =ROUND($I199*D$5/$I$5,0) -> 698 | E199: =ROUND($I199*E$5/$I$5,0) -> 6985 | F199: =ROUND($I199*F$5/$I$5,0) -> 698 | G199: =ROUND($I199*G$5/$I$5,0) -> 698 | H199: =ROUND($I199*H$5/$I$5,0) -> 698 | I199: =MAX(I198+I$5*0.01,I198*$J$4) -> 6984.678701
A200: 196 | B200: 196 | C200: =ROUND($I200*C$5/$I$5,0) -> 70550 | D200: =ROUND($I200*D$5/$I$5,0) -> 706 | E200: =ROUND($I200*E$5/$I$5,0) -> 7055 | F200: =ROUND($I200*F$5/$I$5,0) -> 706 | G200: =ROUND($I200*G$5/$I$5,0) -> 706 | H200: =ROUND($I200*H$5/$I$5,0) -> 706 | I200: =MAX(I199+I$5*0.01,I199*$J$4) -> 7055.011132
A201: 197 | B201: 197 | C201: =ROUND($I201*C$5/$I$5,0) -> 71261 | D201: =ROUND($I201*D$5/$I$5,0) -> 713 | E201: =ROUND($I201*E$5/$I$5,0) -> 7126 | F201: =ROUND($I201*F$5/$I$5,0) -> 713 | G201: =ROUND($I201*G$5/$I$5,0) -> 713 | H201: =ROUND($I201*H$5/$I$5,0) -> 713 | I201: =MAX(I200+I$5*0.01,I200*$J$4) -> 7126.051779
... 103 more rows
